{"text_format":"1","workbook":"xlsx","n_sheets":3,"sheets":["Compte","Liste","Données"],"not_rendered":{"charts":0,"images":0,"macros":1,"external_links":0,"defined_names":0,"comments":0,"pivot_tables":0},"unopened":[],"bounds":{"document_bytes":16777216,"sheet_cells":100000,"rows_first":2000,"rows_last":500,"rows_between":2000,"halvings":0,"cell_chars":16384,"cell_head_chars":4096},"cells_cut":0,"cells_raw":0,"read":"whole","date_system":"1900"}

{"sheet":"Compte","index":0,"n_rows":11,"n_cols":8,"rows_kept":11,"cut":false,"hidden":false,"merged":[]}
[]
["Date","Mois","Année","Catégorie principale","Détails","Crédit","Débit","Montant"]
["2018-12-27","Janvier",{"$f":"2019","v":2019},{"$f":"IF(ISNA(VLOOKUP(Tableau1[[#This Row],[Détails]], Tableau2[], 2, FALSE)), \"\", VLOOKUP(Tableau1[[#This Row],[Détails]], Tableau2[], 2, FALSE))","v":""},"Salaire",1200,null,{"$f":"IF(Tableau1[[#This Row],[Crédit]], Tableau1[[#This Row],[Crédit]], -Tableau1[[#This Row],[Débit]])","v":1200}]
["2018-12-28","Janvier",{"$f":"2019","v":2019},{"$f":"IF(ISNA(VLOOKUP(Tableau1[[#This Row],[Détails]], Tableau2[], 2, FALSE)), \"\", VLOOKUP(Tableau1[[#This Row],[Détails]], Tableau2[], 2, FALSE))","v":"Commande Internet"},"Amazon",null,30,{"$f":"IF(Tableau1[[#This Row],[Crédit]], Tableau1[[#This Row],[Crédit]], -Tableau1[[#This Row],[Débit]])","v":-30}]
["2018-12-28","Janvier",{"$f":"2019","v":2019},{"$f":"IF(ISNA(VLOOKUP(Tableau1[[#This Row],[Détails]], Tableau2[], 2, FALSE)), \"\", VLOOKUP(Tableau1[[#This Row],[Détails]], Tableau2[], 2, FALSE))","v":""},"Cotis. CB",null,30,{"$f":"IF(Tableau1[[#This Row],[Crédit]], Tableau1[[#This Row],[Crédit]], -Tableau1[[#This Row],[Débit]])","v":-30}]
["2018-12-28","Janvier",{"$f":"2019","v":2019},{"$f":"IF(ISNA(VLOOKUP(Tableau1[[#This Row],[Détails]], Tableau2[], 2, FALSE)), \"\", VLOOKUP(Tableau1[[#This Row],[Détails]], Tableau2[], 2, FALSE))","v":""},"Courses (alimentation)",null,80,{"$f":"IF(Tableau1[[#This Row],[Crédit]], Tableau1[[#This Row],[Crédit]], -Tableau1[[#This Row],[Débit]])","v":-80}]
["2018-12-28","Janvier",{"$f":"2019","v":2019},{"$f":"IF(ISNA(VLOOKUP(Tableau1[[#This Row],[Détails]], Tableau2[], 2, FALSE)), \"\", VLOOKUP(Tableau1[[#This Row],[Détails]], Tableau2[], 2, FALSE))","v":""},"Remb. santé",15,null,{"$f":"IF(Tableau1[[#This Row],[Crédit]], Tableau1[[#This Row],[Crédit]], -Tableau1[[#This Row],[Débit]])","v":15}]
["2018-12-28","Janvier",{"$f":"2019","v":2019},{"$f":"IF(ISNA(VLOOKUP(Tableau1[[#This Row],[Détails]], Tableau2[], 2, FALSE)), \"\", VLOOKUP(Tableau1[[#This Row],[Détails]], Tableau2[], 2, FALSE))","v":""},"Virements",null,1.1000000000000001,{"$f":"IF(Tableau1[[#This Row],[Crédit]], Tableau1[[#This Row],[Crédit]], -Tableau1[[#This Row],[Débit]])","v":-1.1000000000000001}]
["2018-12-30","Janvier",{"$f":"2019","v":2019},{"$f":"IF(ISNA(VLOOKUP(Tableau1[[#This Row],[Détails]], Tableau2[], 2, FALSE)), \"\", VLOOKUP(Tableau1[[#This Row],[Détails]], Tableau2[], 2, FALSE))","v":""},"Virements",null,12,{"$f":"IF(Tableau1[[#This Row],[Crédit]], Tableau1[[#This Row],[Crédit]], -Tableau1[[#This Row],[Débit]])","v":-12}]
["2018-12-31","Janvier",{"$f":"2019","v":2019},{"$f":"IF(ISNA(VLOOKUP(Tableau1[[#This Row],[Détails]], Tableau2[], 2, FALSE)), \"\", VLOOKUP(Tableau1[[#This Row],[Détails]], Tableau2[], 2, FALSE))","v":""},"Courses (alimentation)",null,20,{"$f":"IF(Tableau1[[#This Row],[Crédit]], Tableau1[[#This Row],[Crédit]], -Tableau1[[#This Row],[Débit]])","v":-20}]
["2018-12-31","Janvier",{"$f":"2019","v":2019},{"$f":"IF(ISNA(VLOOKUP(Tableau1[[#This Row],[Détails]], Tableau2[], 2, FALSE)), \"\", VLOOKUP(Tableau1[[#This Row],[Détails]], Tableau2[], 2, FALSE))","v":""},"Resto",null,15,{"$f":"IF(Tableau1[[#This Row],[Crédit]], Tableau1[[#This Row],[Crédit]], -Tableau1[[#This Row],[Débit]])","v":-15}]

{"sheet":"Liste","index":1,"n_rows":7,"n_cols":6,"rows_kept":7,"cut":false,"hidden":false,"merged":[]}
[null,null,null,null,"Détails","Catégorie principale"]
[null,null,null,null,"Achats divers","Courses & Achats divers"]
[null,null,null,null,"Amazon","Commande Internet"]
[null,null,null,null,"Assurance Crédit","Charges habitation"]
[null,null,null,null,"Assurance habitation","Charges habitation"]
[null,null,null,null,"Assurance moto","Transport"]
[null,null,null,null,"Assurance Voiture","Transport"]

{"sheet":"Données","index":2,"n_rows":55,"n_cols":15,"rows_kept":55,"cut":false,"hidden":true,"merged":[[17,1,18,12],[44,6,44,9],[44,2,44,3],[45,2,47,3],[54,6,54,8],[53,6,53,8],[52,6,52,8],[51,6,51,8],[50,6,50,8],[48,6,48,8],[47,6,47,8],[49,2,50,3],[51,2,52,3],[45,6,45,8],[46,6,46,8],[49,6,49,8]]}
[]
["Année",{"$f":"#REF!","v":{"$error":"#REF!"}}]
["Catégories","Janvier","Février","Mars","Avril","Mai","Juin","Juillet","Août","Septembre","Octobre","Novembre","Décembre"]
["Salaire",{"$f":"SUMIFS(Tableau1[Montant], Tableau1[Catégorie principale], \"Salaire (-impôts) & autre revenu\", Tableau1[Mois], B$3, Tableau1[Année], $B$2)","v":0},{"$f":"SUMIFS(Tableau1[Montant], Tableau1[Catégorie principale], \"Salaire (-impôts) & autre revenu\", Tableau1[Mois], C$3, Tableau1[Année], $B$2)","v":0},{"$f":"SUMIFS(Tableau1[Montant], Tableau1[Catégorie principale], \"Salaire (-impôts) & autre revenu\", Tableau1[Mois], D$3, Tableau1[Année], $B$2)","v":0},{"$f":"SUMIFS(Tableau1[Montant], Tableau1[Catégorie principale], \"Salaire (-impôts) & autre revenu\", Tableau1[Mois], E$3, Tableau1[Année], $B$2)","v":0},{"$f":"SUMIFS(Tableau1[Montant], Tableau1[Catégorie principale], \"Salaire (-impôts) & autre revenu\", Tableau1[Mois], F$3, Tableau1[Année], $B$2)","v":0},{"$f":"SUMIFS(Tableau1[Montant], Tableau1[Catégorie principale], \"Salaire (-impôts) & autre revenu\", Tableau1[Mois], G$3, Tableau1[Année], $B$2)","v":0},{"$f":"SUMIFS(Tableau1[Montant], Tableau1[Catégorie principale], \"Salaire (-impôts) & autre revenu\", Tableau1[Mois], H$3, Tableau1[Année], $B$2)","v":0},{"$f":"SUMIFS(Tableau1[Montant], Tableau1[Catégorie principale], \"Salaire (-impôts) & autre revenu\", Tableau1[Mois], I$3, Tableau1[Année], $B$2)","v":0},{"$f":"SUMIFS(Tableau1[Montant], Tableau1[Catégorie principale], \"Salaire (-impôts) & autre revenu\", Tableau1[Mois], J$3, Tableau1[Année], $B$2)","v":0},{"$f":"SUMIFS(Tableau1[Montant], Tableau1[Catégorie principale], \"Salaire (-impôts) & autre revenu\", Tableau1[Mois], K$3, Tableau1[Année], $B$2)","v":0},{"$f":"SUMIFS(Tableau1[Montant], Tableau1[Catégorie principale], \"Salaire (-impôts) & autre revenu\", Tableau1[Mois], L$3, Tableau1[Année], $B$2)","v":0},{"$f":"SUMIFS(Tableau1[Montant], Tableau1[Catégorie principale], \"Salaire (-impôts) & autre revenu\", Tableau1[Mois], M$3, Tableau1[Année], $B$2)","v":0}]
["Salaire",{"$f":"IF(B$4>0, B$4, NA())","v":{"$error":"#N/A"}},{"$f":"IF(C$4>0, C$4, NA())","v":{"$error":"#N/A"}},{"$error":"#N/A"},{"$error":"#N/A"},{"$error":"#N/A"},{"$error":"#N/A"},{"$error":"#N/A"},{"$error":"#N/A"},{"$error":"#N/A"},{"$error":"#N/A"},{"$error":"#N/A"},{"$error":"#N/A"},null,"Pour graphique du milieu"]
["Charges habitation",{"$f":"IF((SUMIFS(Tableau1[Montant], Tableau1[Catégorie principale], \"Charges habitation\", Tableau1[Mois], B$3, Tableau1[Année], $B$2))<0, -SUMIFS(Tableau1[Montant], Tableau1[Catégorie principale], \"Charges habitation\", Tableau1[Mois], B$3, Tableau1[Année], $B$2), 0)","v":0},{"$f":"IF((SUMIFS(Tableau1[Montant], Tableau1[Catégorie principale], \"Charges habitation\", Tableau1[Mois], C$3, Tableau1[Année], $B$2))<0, -SUMIFS(Tableau1[Montant], Tableau1[Catégorie principale], \"Charges habitation\", Tableau1[Mois], C$3, Tableau1[Année], $B$2), 0)","v":0},{"$f":"IF((SUMIFS(Tableau1[Montant], Tableau1[Catégorie principale], \"Charges habitation\", Tableau1[Mois], D$3, Tableau1[Année], $B$2))<0, -SUMIFS(Tableau1[Montant], Tableau1[Catégorie principale], \"Charges habitation\", Tableau1[Mois], D$3, Tableau1[Année], $B$2), 0)","v":0},{"$f":"IF((SUMIFS(Tableau1[Montant], Tableau1[Catégorie principale], \"Charges habitation\", Tableau1[Mois], E$3, Tableau1[Année], $B$2))<0, -SUMIFS(Tableau1[Montant], Tableau1[Catégorie principale], \"Charges habitation\", Tableau1[Mois], E$3, Tableau1[Année], $B$2), 0)","v":0},{"$f":"IF((SUMIFS(Tableau1[Montant], Tableau1[Catégorie principale], \"Charges habitation\", Tableau1[Mois], F$3, Tableau1[Année], $B$2))<0, -SUMIFS(Tableau1[Montant], Tableau1[Catégorie principale], \"Charges habitation\", Tableau1[Mois], F$3, Tableau1[Année], $B$2), 0)","v":0},{"$f":"IF((SUMIFS(Tableau1[Montant], Tableau1[Catégorie principale], \"Charges habitation\", Tableau1[Mois], G$3, Tableau1[Année], $B$2))<0, -SUMIFS(Tableau1[Montant], Tableau1[Catégorie principale], \"Charges habitation\", Tableau1[Mois], G$3, Tableau1[Année], $B$2), 0)","v":0},{"$f":"IF((SUMIFS(Tableau1[Montant], Tableau1[Catégorie principale], \"Charges habitation\", Tableau1[Mois], H$3, Tableau1[Année], $B$2))<0, -SUMIFS(Tableau1[Montant], Tableau1[Catégorie principale], \"Charges habitation\", Tableau1[Mois], H$3, Tableau1[Année], $B$2), 0)","v":0},{"$f":"IF((SUMIFS(Tableau1[Montant], Tableau1[Catégorie principale], \"Charges habitation\", Tableau1[Mois], I$3, Tableau1[Année], $B$2))<0, -SUMIFS(Tableau1[Montant], Tableau1[Catégorie principale], \"Charges habitation\", Tableau1[Mois], I$3, Tableau1[Année], $B$2), 0)","v":0},{"$f":"IF((SUMIFS(Tableau1[Montant], Tableau1[Catégorie principale], \"Charges habitation\", Tableau1[Mois], J$3, Tableau1[Année], $B$2))<0, -SUMIFS(Tableau1[Montant], Tableau1[Catégorie principale], \"Charges habitation\", Tableau1[Mois], J$3, Tableau1[Année], $B$2), 0)","v":0},{"$f":"IF((SUMIFS(Tableau1[Montant], Tableau1[Catégorie principale], \"Charges habitation\", Tableau1[Mois], K$3, Tableau1[Année], $B$2))<0, -SUMIFS(Tableau1[Montant], Tableau1[Catégorie principale], \"Charges habitation\", Tableau1[Mois], K$3, Tableau1[Année], $B$2), 0)","v":0},{"$f":"IF((SUMIFS(Tableau1[Montant], Tableau1[Catégorie principale], \"Charges habitation\", Tableau1[Mois], L$3, Tableau1[Année], $B$2))<0, -SUMIFS(Tableau1[Montant], Tableau1[Catégorie principale], \"Charges habitation\", Tableau1[Mois], L$3, Tableau1[Année], $B$2), 0)","v":0},{"$f":"IF((SUMIFS(Tableau1[Montant], Tableau1[Catégorie principale], \"Charges habitation\", Tableau1[Mois], M$3, Tableau1[Année], $B$2))<0, -SUMIFS(Tableau1[Montant], Tableau1[Catégorie principale], \"Charges habitation\", Tableau1[Mois], M$3, Tableau1[Année], $B$2), 0)","v":0},null,"Pour graphique du bas"]
["Banque & autre",{"$f":"IF((SUMIFS(Tableau1[Montant], Tableau1[Catégorie principale], \"Banque\", Tableau1[Mois], B$3, Tableau1[Année], $B$2))<0, -SUMIFS(Tableau1[Montant], Tableau1[Catégorie principale], \"Banque\", Tableau1[Mois], B$3, Tableau1[Année], $B$2), 0)+IF((SUMIFS(Tableau1[Montant], Tableau1[Catégorie principale], \"Autres transactions\", Tableau1[Mois], B$3, Tableau1[Année], $B$2))<0, -SUMIFS(Tableau1[Montant], Tableau1[Catégorie principale], \"Autres transactions\", Tableau1[Mois], B$3, Tableau1[Année], $B$2), 0)","v":0},{"$f":"IF((SUMIFS(Tableau1[Montant], Tableau1[Catégorie principale], \"Banque\", Tableau1[Mois], C$3, Tableau1[Année], $B$2))<0, -SUMIFS(Tableau1[Montant], Tableau1[Catégorie principale], \"Banque\", Tableau1[Mois], C$3, Tableau1[Année], $B$2), 0)+IF((SUMIFS(Tableau1[Montant], Tableau1[Catégorie principale], \"Autres transactions\", Tableau1[Mois], C$3, Tableau1[Année], $B$2))<0, -SUMIFS(Tableau1[Montant], Tableau1[Catégorie principale], \"Autres transactions\", Tableau1[Mois], C$3, Tableau1[Année], $B$2), 0)","v":0},{"$f":"IF((SUMIFS(Tableau1[Montant], Tableau1[Catégorie principale], \"Banque\", Tableau1[Mois], D$3, Tableau1[Année], $B$2))<0, -SUMIFS(Tableau1[Montant], Tableau1[Catégorie principale], \"Banque\", Tableau1[Mois], D$3, Tableau1[Année], $B$2), 0)+IF((SUMIFS(Tableau1[Montant], Tableau1[Catégorie principale], \"Autres transactions\", Tableau1[Mois], D$3, Tableau1[Année], $B$2))<0, -SUMIFS(Tableau1[Montant], Tableau1[Catégorie principale], \"Autres transactions\", Tableau1[Mois], D$3, Tableau1[Année], $B$2), 0)","v":0},{"$f":"IF((SUMIFS(Tableau1[Montant], Tableau1[Catégorie principale], \"Banque\", Tableau1[Mois], E$3, Tableau1[Année], $B$2))<0, -SUMIFS(Tableau1[Montant], Tableau1[Catégorie principale], \"Banque\", Tableau1[Mois], E$3, Tableau1[Année], $B$2), 0)+IF((SUMIFS(Tableau1[Montant], Tableau1[Catégorie principale], \"Autres transactions\", Tableau1[Mois], E$3, Tableau1[Année], $B$2))<0, -SUMIFS(Tableau1[Montant], Tableau1[Catégorie principale], \"Autres transactions\", Tableau1[Mois], E$3, Tableau1[Année], $B$2), 0)","v":0},{"$f":"IF((SUMIFS(Tableau1[Montant], Tableau1[Catégorie principale], \"Banque\", Tableau1[Mois], F$3, Tableau1[Année], $B$2))<0, -SUMIFS(Tableau1[Montant], Tableau1[Catégorie principale], \"Banque\", Tableau1[Mois], F$3, Tableau1[Année], $B$2), 0)+IF((SUMIFS(Tableau1[Montant], Tableau1[Catégorie principale], \"Autres transactions\", Tableau1[Mois], F$3, Tableau1[Année], $B$2))<0, -SUMIFS(Tableau1[Montant], Tableau1[Catégorie principale], \"Autres transactions\", Tableau1[Mois], F$3, Tableau1[Année], $B$2), 0)","v":0},{"$f":"IF((SUMIFS(Tableau1[Montant], Tableau1[Catégorie principale], \"Banque\", Tableau1[Mois], G$3, Tableau1[Année], $B$2))<0, -SUMIFS(Tableau1[Montant], Tableau1[Catégorie principale], \"Banque\", Tableau1[Mois], G$3, Tableau1[Année], $B$2), 0)+IF((SUMIFS(Tableau1[Montant], Tableau1[Catégorie principale], \"Autres transactions\", Tableau1[Mois], G$3, Tableau1[Année], $B$2))<0, -SUMIFS(Tableau1[Montant], Tableau1[Catégorie principale], \"Autres transactions\", Tableau1[Mois], G$3, Tableau1[Année], $B$2), 0)","v":0},{"$f":"IF((SUMIFS(Tableau1[Montant], Tableau1[Catégorie principale], \"Banque\", Tableau1[Mois], H$3, Tableau1[Année], $B$2))<0, -SUMIFS(Tableau1[Montant], Tableau1[Catégorie principale], \"Banque\", Tableau1[Mois], H$3, Tableau1[Année], $B$2), 0)+IF((SUMIFS(Tableau1[Montant], Tableau1[Catégorie principale], \"Autres transactions\", Tableau1[Mois], H$3, Tableau1[Année], $B$2))<0, -SUMIFS(Tableau1[Montant], Tableau1[Catégorie principale], \"Autres transactions\", Tableau1[Mois], H$3, Tableau1[Année], $B$2), 0)","v":0},{"$f":"IF((SUMIFS(Tableau1[Montant], Tableau1[Catégorie principale], \"Banque\", Tableau1[Mois], I$3, Tableau1[Année], $B$2))<0, -SUMIFS(Tableau1[Montant], Tableau1[Catégorie principale], \"Banque\", Tableau1[Mois], I$3, Tableau1[Année], $B$2), 0)+IF((SUMIFS(Tableau1[Montant], Tableau1[Catégorie principale], \"Autres transactions\", Tableau1[Mois], I$3, Tableau1[Année], $B$2))<0, -SUMIFS(Tableau1[Montant], Tableau1[Catégorie principale], \"Autres transactions\", Tableau1[Mois], I$3, Tableau1[Année], $B$2), 0)","v":0},{"$f":"IF((SUMIFS(Tableau1[Montant], Tableau1[Catégorie principale], \"Banque\", Tableau1[Mois], J$3, Tableau1[Année], $B$2))<0, -SUMIFS(Tableau1[Montant], Tableau1[Catégorie principale], \"Banque\", Tableau1[Mois], J$3, Tableau1[Année], $B$2), 0)+IF((SUMIFS(Tableau1[Montant], Tableau1[Catégorie principale], \"Autres transactions\", Tableau1[Mois], J$3, Tableau1[Année], $B$2))<0, -SUMIFS(Tableau1[Montant], Tableau1[Catégorie principale], \"Autres transactions\", Tableau1[Mois], J$3, Tableau1[Année], $B$2), 0)","v":0},{"$f":"IF((SUMIFS(Tableau1[Montant], Tableau1[Catégorie principale], \"Banque\", Tableau1[Mois], K$3, Tableau1[Année], $B$2))<0, -SUMIFS(Tableau1[Montant], Tableau1[Catégorie principale], \"Banque\", Tableau1[Mois], K$3, Tableau1[Année], $B$2), 0)+IF((SUMIFS(Tableau1[Montant], Tableau1[Catégorie principale], \"Autres transactions\", Tableau1[Mois], K$3, Tableau1[Année], $B$2))<0, -SUMIFS(Tableau1[Montant], Tableau1[Catégorie principale], \"Autres transactions\", Tableau1[Mois], K$3, Tableau1[Année], $B$2), 0)","v":0},{"$f":"IF((SUMIFS(Tableau1[Montant], Tableau1[Catégorie principale], \"Banque\", Tableau1[Mois], L$3, Tableau1[Année], $B$2))<0, -SUMIFS(Tableau1[Montant], Tableau1[Catégorie principale], \"Banque\", Tableau1[Mois], L$3, Tableau1[Année], $B$2), 0)+IF((SUMIFS(Tableau1[Montant], Tableau1[Catégorie principale], \"Autres transactions\", Tableau1[Mois], L$3, Tableau1[Année], $B$2))<0, -SUMIFS(Tableau1[Montant], Tableau1[Catégorie principale], \"Autres transactions\", Tableau1[Mois], L$3, Tableau1[Année], $B$2), 0)","v":0},{"$f":"IF((SUMIFS(Tableau1[Montant], Tableau1[Catégorie principale], \"Banque\", Tableau1[Mois], M$3, Tableau1[Année], $B$2))<0, -SUMIFS(Tableau1[Montant], Tableau1[Catégorie principale], \"Banque\", Tableau1[Mois], M$3, Tableau1[Année], $B$2), 0)+IF((SUMIFS(Tableau1[Montant], Tableau1[Catégorie principale], \"Autres transactions\", Tableau1[Mois], M$3, Tableau1[Année], $B$2))<0, -SUMIFS(Tableau1[Montant], Tableau1[Catégorie principale], \"Autres transactions\", Tableau1[Mois], M$3, Tableau1[Année], $B$2), 0)","v":0},null,"Pour graphique du bas"]
["Pannier repas",{"$f":"IF((SUMIFS(Tableau1[Montant], Tableau1[Catégorie principale], \"Boulot\", Tableau1[Mois], B$3, Tableau1[Année], $B$2))<0, -SUMIFS(Tableau1[Montant], Tableau1[Catégorie principale], \"Boulot\", Tableau1[Mois], B$3, Tableau1[Année], $B$2), 0)","v":0},{"$f":"IF((SUMIFS(Tableau1[Montant], Tableau1[Catégorie principale], \"Boulot\", Tableau1[Mois], C$3, Tableau1[Année], $B$2))<0, -SUMIFS(Tableau1[Montant], Tableau1[Catégorie principale], \"Boulot\", Tableau1[Mois], C$3, Tableau1[Année], $B$2), 0)","v":0},{"$f":"IF((SUMIFS(Tableau1[Montant], Tableau1[Catégorie principale], \"Boulot\", Tableau1[Mois], D$3, Tableau1[Année], $B$2))<0, -SUMIFS(Tableau1[Montant], Tableau1[Catégorie principale], \"Boulot\", Tableau1[Mois], D$3, Tableau1[Année], $B$2), 0)","v":0},{"$f":"IF((SUMIFS(Tableau1[Montant], Tableau1[Catégorie principale], \"Boulot\", Tableau1[Mois], E$3, Tableau1[Année], $B$2))<0, -SUMIFS(Tableau1[Montant], Tableau1[Catégorie principale], \"Boulot\", Tableau1[Mois], E$3, Tableau1[Année], $B$2), 0)","v":0},{"$f":"IF((SUMIFS(Tableau1[Montant], Tableau1[Catégorie principale], \"Boulot\", Tableau1[Mois], F$3, Tableau1[Année], $B$2))<0, -SUMIFS(Tableau1[Montant], Tableau1[Catégorie principale], \"Boulot\", Tableau1[Mois], F$3, Tableau1[Année], $B$2), 0)","v":0},{"$f":"IF((SUMIFS(Tableau1[Montant], Tableau1[Catégorie principale], \"Boulot\", Tableau1[Mois], G$3, Tableau1[Année], $B$2))<0, -SUMIFS(Tableau1[Montant], Tableau1[Catégorie principale], \"Boulot\", Tableau1[Mois], G$3, Tableau1[Année], $B$2), 0)","v":0},{"$f":"IF((SUMIFS(Tableau1[Montant], Tableau1[Catégorie principale], \"Boulot\", Tableau1[Mois], H$3, Tableau1[Année], $B$2))<0, -SUMIFS(Tableau1[Montant], Tableau1[Catégorie principale], \"Boulot\", Tableau1[Mois], H$3, Tableau1[Année], $B$2), 0)","v":0},{"$f":"IF((SUMIFS(Tableau1[Montant], Tableau1[Catégorie principale], \"Boulot\", Tableau1[Mois], I$3, Tableau1[Année], $B$2))<0, -SUMIFS(Tableau1[Montant], Tableau1[Catégorie principale], \"Boulot\", Tableau1[Mois], I$3, Tableau1[Année], $B$2), 0)","v":0},{"$f":"IF((SUMIFS(Tableau1[Montant], Tableau1[Catégorie principale], \"Boulot\", Tableau1[Mois], J$3, Tableau1[Année], $B$2))<0, -SUMIFS(Tableau1[Montant], Tableau1[Catégorie principale], \"Boulot\", Tableau1[Mois], J$3, Tableau1[Année], $B$2), 0)","v":0},{"$f":"IF((SUMIFS(Tableau1[Montant], Tableau1[Catégorie principale], \"Boulot\", Tableau1[Mois], K$3, Tableau1[Année], $B$2))<0, -SUMIFS(Tableau1[Montant], Tableau1[Catégorie principale], \"Boulot\", Tableau1[Mois], K$3, Tableau1[Année], $B$2), 0)","v":0},{"$f":"IF((SUMIFS(Tableau1[Montant], Tableau1[Catégorie principale], \"Boulot\", Tableau1[Mois], L$3, Tableau1[Année], $B$2))<0, -SUMIFS(Tableau1[Montant], Tableau1[Catégorie principale], \"Boulot\", Tableau1[Mois], L$3, Tableau1[Année], $B$2), 0)","v":0},{"$f":"IF((SUMIFS(Tableau1[Montant], Tableau1[Catégorie principale], \"Boulot\", Tableau1[Mois], M$3, Tableau1[Année], $B$2))<0, -SUMIFS(Tableau1[Montant], Tableau1[Catégorie principale], \"Boulot\", Tableau1[Mois], M$3, Tableau1[Année], $B$2), 0)","v":0},null,"Pour graphique du bas"]
["Courses & autres achats",{"$f":"IF((SUMIFS(Tableau1[Montant], Tableau1[Catégorie principale], \"Courses & Achats divers\", Tableau1[Mois], B$3, Tableau1[Année], $B$2)+SUMIFS(Tableau1[Montant], Tableau1[Catégorie principale], \"Commande Internet\", Tableau1[Mois], B$3, Tableau1[Année], $B$2))<0, -(SUMIFS(Tableau1[Montant], Tableau1[Catégorie principale], \"Courses & Achats divers\", Tableau1[Mois], B$3, Tableau1[Année], $B$2)+SUMIFS(Tableau1[Montant], Tableau1[Catégorie principale], \"Commande Internet\", Tableau1[Mois], B$3, Tableau1[Année], $B$2)), (SUMIFS(Tableau1[Montant], Tableau1[Catégorie principale], \"Courses & Achats divers\", Tableau1[Mois], B$3, Tableau1[Année], $B$2)+SUMIFS(Tableau1[Montant], Tableau1[Catégorie principale], \"Commande Internet\", Tableau1[Mois], B$3, Tableau1[Année], $B$2)))","v":0},{"$f":"IF((SUMIFS(Tableau1[Montant], Tableau1[Catégorie principale], \"Courses & Achats divers\", Tableau1[Mois], C$3, Tableau1[Année], $B$2)+SUMIFS(Tableau1[Montant], Tableau1[Catégorie principale], \"Commande Internet\", Tableau1[Mois], C$3, Tableau1[Année], $B$2))<0, -(SUMIFS(Tableau1[Montant], Tableau1[Catégorie principale], \"Courses & Achats divers\", Tableau1[Mois], C$3, Tableau1[Année], $B$2)+SUMIFS(Tableau1[Montant], Tableau1[Catégorie principale], \"Commande Internet\", Tableau1[Mois], C$3, Tableau1[Année], $B$2)), (SUMIFS(Tableau1[Montant], Tableau1[Catégorie principale], \"Courses & Achats divers\", Tableau1[Mois], C$3, Tableau1[Année], $B$2)+SUMIFS(Tableau1[Montant], Tableau1[Catégorie principale], \"Commande Internet\", Tableau1[Mois], C$3, Tableau1[Année], $B$2)))","v":0},{"$f":"IF((SUMIFS(Tableau1[Montant], Tableau1[Catégorie principale], \"Courses & Achats divers\", Tableau1[Mois], D$3, Tableau1[Année], $B$2)+SUMIFS(Tableau1[Montant], Tableau1[Catégorie principale], \"Commande Internet\", Tableau1[Mois], D$3, Tableau1[Année], $B$2))<0, -(SUMIFS(Tableau1[Montant], Tableau1[Catégorie principale], \"Courses & Achats divers\", Tableau1[Mois], D$3, Tableau1[Année], $B$2)+SUMIFS(Tableau1[Montant], Tableau1[Catégorie principale], \"Commande Internet\", Tableau1[Mois], D$3, Tableau1[Année], $B$2)), (SUMIFS(Tableau1[Montant], Tableau1[Catégorie principale], \"Courses & Achats divers\", Tableau1[Mois], D$3, Tableau1[Année], $B$2)+SUMIFS(Tableau1[Montant], Tableau1[Catégorie principale], \"Commande Internet\", Tableau1[Mois], D$3, Tableau1[Année], $B$2)))","v":0},{"$f":"IF((SUMIFS(Tableau1[Montant], Tableau1[Catégorie principale], \"Courses & Achats divers\", Tableau1[Mois], E$3, Tableau1[Année], $B$2)+SUMIFS(Tableau1[Montant], Tableau1[Catégorie principale], \"Commande Internet\", Tableau1[Mois], E$3, Tableau1[Année], $B$2))<0, -(SUMIFS(Tableau1[Montant], Tableau1[Catégorie principale], \"Courses & Achats divers\", Tableau1[Mois], E$3, Tableau1[Année], $B$2)+SUMIFS(Tableau1[Montant], Tableau1[Catégorie principale], \"Commande Internet\", Tableau1[Mois], E$3, Tableau1[Année], $B$2)), (SUMIFS(Tableau1[Montant], Tableau1[Catégorie principale], \"Courses & Achats divers\", Tableau1[Mois], E$3, Tableau1[Année], $B$2)+SUMIFS(Tableau1[Montant], Tableau1[Catégorie principale], \"Commande Internet\", Tableau1[Mois], E$3, Tableau1[Année], $B$2)))","v":0},{"$f":"IF((SUMIFS(Tableau1[Montant], Tableau1[Catégorie principale], \"Courses & Achats divers\", Tableau1[Mois], F$3, Tableau1[Année], $B$2)+SUMIFS(Tableau1[Montant], Tableau1[Catégorie principale], \"Commande Internet\", Tableau1[Mois], F$3, Tableau1[Année], $B$2))<0, -(SUMIFS(Tableau1[Montant], Tableau1[Catégorie principale], \"Courses & Achats divers\", Tableau1[Mois], F$3, Tableau1[Année], $B$2)+SUMIFS(Tableau1[Montant], Tableau1[Catégorie principale], \"Commande Internet\", Tableau1[Mois], F$3, Tableau1[Année], $B$2)), (SUMIFS(Tableau1[Montant], Tableau1[Catégorie principale], \"Courses & Achats divers\", Tableau1[Mois], F$3, Tableau1[Année], $B$2)+SUMIFS(Tableau1[Montant], Tableau1[Catégorie principale], \"Commande Internet\", Tableau1[Mois], F$3, Tableau1[Année], $B$2)))","v":0},{"$f":"IF((SUMIFS(Tableau1[Montant], Tableau1[Catégorie principale], \"Courses & Achats divers\", Tableau1[Mois], G$3, Tableau1[Année], $B$2)+SUMIFS(Tableau1[Montant], Tableau1[Catégorie principale], \"Commande Internet\", Tableau1[Mois], G$3, Tableau1[Année], $B$2))<0, -(SUMIFS(Tableau1[Montant], Tableau1[Catégorie principale], \"Courses & Achats divers\", Tableau1[Mois], G$3, Tableau1[Année], $B$2)+SUMIFS(Tableau1[Montant], Tableau1[Catégorie principale], \"Commande Internet\", Tableau1[Mois], G$3, Tableau1[Année], $B$2)), (SUMIFS(Tableau1[Montant], Tableau1[Catégorie principale], \"Courses & Achats divers\", Tableau1[Mois], G$3, Tableau1[Année], $B$2)+SUMIFS(Tableau1[Montant], Tableau1[Catégorie principale], \"Commande Internet\", Tableau1[Mois], G$3, Tableau1[Année], $B$2)))","v":0},{"$f":"IF((SUMIFS(Tableau1[Montant], Tableau1[Catégorie principale], \"Courses & Achats divers\", Tableau1[Mois], H$3, Tableau1[Année], $B$2)+SUMIFS(Tableau1[Montant], Tableau1[Catégorie principale], \"Commande Internet\", Tableau1[Mois], H$3, Tableau1[Année], $B$2))<0, -(SUMIFS(Tableau1[Montant], Tableau1[Catégorie principale], \"Courses & Achats divers\", Tableau1[Mois], H$3, Tableau1[Année], $B$2)+SUMIFS(Tableau1[Montant], Tableau1[Catégorie principale], \"Commande Internet\", Tableau1[Mois], H$3, Tableau1[Année], $B$2)), (SUMIFS(Tableau1[Montant], Tableau1[Catégorie principale], \"Courses & Achats divers\", Tableau1[Mois], H$3, Tableau1[Année], $B$2)+SUMIFS(Tableau1[Montant], Tableau1[Catégorie principale], \"Commande Internet\", Tableau1[Mois], H$3, Tableau1[Année], $B$2)))","v":0},{"$f":"IF((SUMIFS(Tableau1[Montant], Tableau1[Catégorie principale], \"Courses & Achats divers\", Tableau1[Mois], I$3, Tableau1[Année], $B$2)+SUMIFS(Tableau1[Montant], Tableau1[Catégorie principale], \"Commande Internet\", Tableau1[Mois], I$3, Tableau1[Année], $B$2))<0, -(SUMIFS(Tableau1[Montant], Tableau1[Catégorie principale], \"Courses & Achats divers\", Tableau1[Mois], I$3, Tableau1[Année], $B$2)+SUMIFS(Tableau1[Montant], Tableau1[Catégorie principale], \"Commande Internet\", Tableau1[Mois], I$3, Tableau1[Année], $B$2)), (SUMIFS(Tableau1[Montant], Tableau1[Catégorie principale], \"Courses & Achats divers\", Tableau1[Mois], I$3, Tableau1[Année], $B$2)+SUMIFS(Tableau1[Montant], Tableau1[Catégorie principale], \"Commande Internet\", Tableau1[Mois], I$3, Tableau1[Année], $B$2)))","v":0},{"$f":"IF((SUMIFS(Tableau1[Montant], Tableau1[Catégorie principale], \"Courses & Achats divers\", Tableau1[Mois], J$3, Tableau1[Année], $B$2)+SUMIFS(Tableau1[Montant], Tableau1[Catégorie principale], \"Commande Internet\", Tableau1[Mois], J$3, Tableau1[Année], $B$2))<0, -(SUMIFS(Tableau1[Montant], Tableau1[Catégorie principale], \"Courses & Achats divers\", Tableau1[Mois], J$3, Tableau1[Année], $B$2)+SUMIFS(Tableau1[Montant], Tableau1[Catégorie principale], \"Commande Internet\", Tableau1[Mois], J$3, Tableau1[Année], $B$2)), (SUMIFS(Tableau1[Montant], Tableau1[Catégorie principale], \"Courses & Achats divers\", Tableau1[Mois], J$3, Tableau1[Année], $B$2)+SUMIFS(Tableau1[Montant], Tableau1[Catégorie principale], \"Commande Internet\", Tableau1[Mois], J$3, Tableau1[Année], $B$2)))","v":0},{"$f":"IF((SUMIFS(Tableau1[Montant], Tableau1[Catégorie principale], \"Courses & Achats divers\", Tableau1[Mois], K$3, Tableau1[Année], $B$2)+SUMIFS(Tableau1[Montant], Tableau1[Catégorie principale], \"Commande Internet\", Tableau1[Mois], K$3, Tableau1[Année], $B$2))<0, -(SUMIFS(Tableau1[Montant], Tableau1[Catégorie principale], \"Courses & Achats divers\", Tableau1[Mois], K$3, Tableau1[Année], $B$2)+SUMIFS(Tableau1[Montant], Tableau1[Catégorie principale], \"Commande Internet\", Tableau1[Mois], K$3, Tableau1[Année], $B$2)), (SUMIFS(Tableau1[Montant], Tableau1[Catégorie principale], \"Courses & Achats divers\", Tableau1[Mois], K$3, Tableau1[Année], $B$2)+SUMIFS(Tableau1[Montant], Tableau1[Catégorie principale], \"Commande Internet\", Tableau1[Mois], K$3, Tableau1[Année], $B$2)))","v":0},{"$f":"IF((SUMIFS(Tableau1[Montant], Tableau1[Catégorie principale], \"Courses & Achats divers\", Tableau1[Mois], L$3, Tableau1[Année], $B$2)+SUMIFS(Tableau1[Montant], Tableau1[Catégorie principale], \"Commande Internet\", Tableau1[Mois], L$3, Tableau1[Année], $B$2))<0, -(SUMIFS(Tableau1[Montant], Tableau1[Catégorie principale], \"Courses & Achats divers\", Tableau1[Mois], L$3, Tableau1[Année], $B$2)+SUMIFS(Tableau1[Montant], Tableau1[Catégorie principale], \"Commande Internet\", Tableau1[Mois], L$3, Tableau1[Année], $B$2)), (SUMIFS(Tableau1[Montant], Tableau1[Catégorie principale], \"Courses & Achats divers\", Tableau1[Mois], L$3, Tableau1[Année], $B$2)+SUMIFS(Tableau1[Montant], Tableau1[Catégorie principale], \"Commande Internet\", Tableau1[Mois], L$3, Tableau1[Année], $B$2)))","v":0},{"$f":"IF((SUMIFS(Tableau1[Montant], Tableau1[Catégorie principale], \"Courses & Achats divers\", Tableau1[Mois], M$3, Tableau1[Année], $B$2)+SUMIFS(Tableau1[Montant], Tableau1[Catégorie principale], \"Commande Internet\", Tableau1[Mois], M$3, Tableau1[Année], $B$2))<0, -(SUMIFS(Tableau1[Montant], Tableau1[Catégorie principale], \"Courses & Achats divers\", Tableau1[Mois], M$3, Tableau1[Année], $B$2)+SUMIFS(Tableau1[Montant], Tableau1[Catégorie principale], \"Commande Internet\", Tableau1[Mois], M$3, Tableau1[Année], $B$2)), (SUMIFS(Tableau1[Montant], Tableau1[Catégorie principale], \"Courses & Achats divers\", Tableau1[Mois], M$3, Tableau1[Année], $B$2)+SUMIFS(Tableau1[Montant], Tableau1[Catégorie principale], \"Commande Internet\", Tableau1[Mois], M$3, Tableau1[Année], $B$2)))","v":0},null,"Pour graphique du bas"]
["Santé",{"$f":"IF((SUMIFS(Tableau1[Montant], Tableau1[Catégorie principale], \"Santé\", Tableau1[Mois], B$3, Tableau1[Année], $B$2))<0, -SUMIFS(Tableau1[Montant], Tableau1[Catégorie principale], \"Santé\", Tableau1[Mois], B$3, Tableau1[Année], $B$2), 0)","v":0},{"$f":"IF((SUMIFS(Tableau1[Montant], Tableau1[Catégorie principale], \"Santé\", Tableau1[Mois], C$3, Tableau1[Année], $B$2))<0, -SUMIFS(Tableau1[Montant], Tableau1[Catégorie principale], \"Santé\", Tableau1[Mois], C$3, Tableau1[Année], $B$2), 0)","v":0},{"$f":"IF((SUMIFS(Tableau1[Montant], Tableau1[Catégorie principale], \"Santé\", Tableau1[Mois], D$3, Tableau1[Année], $B$2))<0, -SUMIFS(Tableau1[Montant], Tableau1[Catégorie principale], \"Santé\", Tableau1[Mois], D$3, Tableau1[Année], $B$2), 0)","v":0},{"$f":"IF((SUMIFS(Tableau1[Montant], Tableau1[Catégorie principale], \"Santé\", Tableau1[Mois], E$3, Tableau1[Année], $B$2))<0, -SUMIFS(Tableau1[Montant], Tableau1[Catégorie principale], \"Santé\", Tableau1[Mois], E$3, Tableau1[Année], $B$2), 0)","v":0},{"$f":"IF((SUMIFS(Tableau1[Montant], Tableau1[Catégorie principale], \"Santé\", Tableau1[Mois], F$3, Tableau1[Année], $B$2))<0, -SUMIFS(Tableau1[Montant], Tableau1[Catégorie principale], \"Santé\", Tableau1[Mois], F$3, Tableau1[Année], $B$2), 0)","v":0},{"$f":"IF((SUMIFS(Tableau1[Montant], Tableau1[Catégorie principale], \"Santé\", Tableau1[Mois], G$3, Tableau1[Année], $B$2))<0, -SUMIFS(Tableau1[Montant], Tableau1[Catégorie principale], \"Santé\", Tableau1[Mois], G$3, Tableau1[Année], $B$2), 0)","v":0},{"$f":"IF((SUMIFS(Tableau1[Montant], Tableau1[Catégorie principale], \"Santé\", Tableau1[Mois], H$3, Tableau1[Année], $B$2))<0, -SUMIFS(Tableau1[Montant], Tableau1[Catégorie principale], \"Santé\", Tableau1[Mois], H$3, Tableau1[Année], $B$2), 0)","v":0},{"$f":"IF((SUMIFS(Tableau1[Montant], Tableau1[Catégorie principale], \"Santé\", Tableau1[Mois], I$3, Tableau1[Année], $B$2))<0, -SUMIFS(Tableau1[Montant], Tableau1[Catégorie principale], \"Santé\", Tableau1[Mois], I$3, Tableau1[Année], $B$2), 0)","v":0},{"$f":"IF((SUMIFS(Tableau1[Montant], Tableau1[Catégorie principale], \"Santé\", Tableau1[Mois], J$3, Tableau1[Année], $B$2))<0, -SUMIFS(Tableau1[Montant], Tableau1[Catégorie principale], \"Santé\", Tableau1[Mois], J$3, Tableau1[Année], $B$2), 0)","v":0},{"$f":"IF((SUMIFS(Tableau1[Montant], Tableau1[Catégorie principale], \"Santé\", Tableau1[Mois], K$3, Tableau1[Année], $B$2))<0, -SUMIFS(Tableau1[Montant], Tableau1[Catégorie principale], \"Santé\", Tableau1[Mois], K$3, Tableau1[Année], $B$2), 0)","v":0},{"$f":"IF((SUMIFS(Tableau1[Montant], Tableau1[Catégorie principale], \"Santé\", Tableau1[Mois], L$3, Tableau1[Année], $B$2))<0, -SUMIFS(Tableau1[Montant], Tableau1[Catégorie principale], \"Santé\", Tableau1[Mois], L$3, Tableau1[Année], $B$2), 0)","v":0},{"$f":"IF((SUMIFS(Tableau1[Montant], Tableau1[Catégorie principale], \"Santé\", Tableau1[Mois], M$3, Tableau1[Année], $B$2))<0, -SUMIFS(Tableau1[Montant], Tableau1[Catégorie principale], \"Santé\", Tableau1[Mois], M$3, Tableau1[Année], $B$2), 0)","v":0},null,"Pour graphique du bas"]
["Soirées, sorties et loisirs",{"$f":"IF((SUMIFS(Tableau1[Montant], Tableau1[Catégorie principale], \"Soirées, sorties et loisirs\", Tableau1[Mois], B$3, Tableau1[Année], $B$2))<0, -SUMIFS(Tableau1[Montant], Tableau1[Catégorie principale], \"Soirées, sorties et loisirs\", Tableau1[Mois], B$3, Tableau1[Année], $B$2), 0)","v":0},{"$f":"IF((SUMIFS(Tableau1[Montant], Tableau1[Catégorie principale], \"Soirées, sorties et loisirs\", Tableau1[Mois], C$3, Tableau1[Année], $B$2))<0, -SUMIFS(Tableau1[Montant], Tableau1[Catégorie principale], \"Soirées, sorties et loisirs\", Tableau1[Mois], C$3, Tableau1[Année], $B$2), 0)","v":0},{"$f":"IF((SUMIFS(Tableau1[Montant], Tableau1[Catégorie principale], \"Soirées, sorties et loisirs\", Tableau1[Mois], D$3, Tableau1[Année], $B$2))<0, -SUMIFS(Tableau1[Montant], Tableau1[Catégorie principale], \"Soirées, sorties et loisirs\", Tableau1[Mois], D$3, Tableau1[Année], $B$2), 0)","v":0},{"$f":"IF((SUMIFS(Tableau1[Montant], Tableau1[Catégorie principale], \"Soirées, sorties et loisirs\", Tableau1[Mois], E$3, Tableau1[Année], $B$2))<0, -SUMIFS(Tableau1[Montant], Tableau1[Catégorie principale], \"Soirées, sorties et loisirs\", Tableau1[Mois], E$3, Tableau1[Année], $B$2), 0)","v":0},{"$f":"IF((SUMIFS(Tableau1[Montant], Tableau1[Catégorie principale], \"Soirées, sorties et loisirs\", Tableau1[Mois], F$3, Tableau1[Année], $B$2))<0, -SUMIFS(Tableau1[Montant], Tableau1[Catégorie principale], \"Soirées, sorties et loisirs\", Tableau1[Mois], F$3, Tableau1[Année], $B$2), 0)","v":0},{"$f":"IF((SUMIFS(Tableau1[Montant], Tableau1[Catégorie principale], \"Soirées, sorties et loisirs\", Tableau1[Mois], G$3, Tableau1[Année], $B$2))<0, -SUMIFS(Tableau1[Montant], Tableau1[Catégorie principale], \"Soirées, sorties et loisirs\", Tableau1[Mois], G$3, Tableau1[Année], $B$2), 0)","v":0},{"$f":"IF((SUMIFS(Tableau1[Montant], Tableau1[Catégorie principale], \"Soirées, sorties et loisirs\", Tableau1[Mois], H$3, Tableau1[Année], $B$2))<0, -SUMIFS(Tableau1[Montant], Tableau1[Catégorie principale], \"Soirées, sorties et loisirs\", Tableau1[Mois], H$3, Tableau1[Année], $B$2), 0)","v":0},{"$f":"IF((SUMIFS(Tableau1[Montant], Tableau1[Catégorie principale], \"Soirées, sorties et loisirs\", Tableau1[Mois], I$3, Tableau1[Année], $B$2))<0, -SUMIFS(Tableau1[Montant], Tableau1[Catégorie principale], \"Soirées, sorties et loisirs\", Tableau1[Mois], I$3, Tableau1[Année], $B$2), 0)","v":0},{"$f":"IF((SUMIFS(Tableau1[Montant], Tableau1[Catégorie principale], \"Soirées, sorties et loisirs\", Tableau1[Mois], J$3, Tableau1[Année], $B$2))<0, -SUMIFS(Tableau1[Montant], Tableau1[Catégorie principale], \"Soirées, sorties et loisirs\", Tableau1[Mois], J$3, Tableau1[Année], $B$2), 0)","v":0},{"$f":"IF((SUMIFS(Tableau1[Montant], Tableau1[Catégorie principale], \"Soirées, sorties et loisirs\", Tableau1[Mois], K$3, Tableau1[Année], $B$2))<0, -SUMIFS(Tableau1[Montant], Tableau1[Catégorie principale], \"Soirées, sorties et loisirs\", Tableau1[Mois], K$3, Tableau1[Année], $B$2), 0)","v":0},{"$f":"IF((SUMIFS(Tableau1[Montant], Tableau1[Catégorie principale], \"Soirées, sorties et loisirs\", Tableau1[Mois], L$3, Tableau1[Année], $B$2))<0, -SUMIFS(Tableau1[Montant], Tableau1[Catégorie principale], \"Soirées, sorties et loisirs\", Tableau1[Mois], L$3, Tableau1[Année], $B$2), 0)","v":0},{"$f":"IF((SUMIFS(Tableau1[Montant], Tableau1[Catégorie principale], \"Soirées, sorties et loisirs\", Tableau1[Mois], M$3, Tableau1[Année], $B$2))<0, -SUMIFS(Tableau1[Montant], Tableau1[Catégorie principale], \"Soirées, sorties et loisirs\", Tableau1[Mois], M$3, Tableau1[Année], $B$2), 0)","v":0},null,"Pour graphique du bas"]
["Transport",{"$f":"IF((SUMIFS(Tableau1[Montant], Tableau1[Catégorie principale], \"Transport\", Tableau1[Mois], B$3, Tableau1[Année], $B$2))<0, -SUMIFS(Tableau1[Montant], Tableau1[Catégorie principale], \"Transport\", Tableau1[Mois], B$3, Tableau1[Année], $B$2), 0)","v":0},{"$f":"IF((SUMIFS(Tableau1[Montant], Tableau1[Catégorie principale], \"Transport\", Tableau1[Mois], C$3, Tableau1[Année], $B$2))<0, -SUMIFS(Tableau1[Montant], Tableau1[Catégorie principale], \"Transport\", Tableau1[Mois], C$3, Tableau1[Année], $B$2), 0)","v":0},{"$f":"IF((SUMIFS(Tableau1[Montant], Tableau1[Catégorie principale], \"Transport\", Tableau1[Mois], D$3, Tableau1[Année], $B$2))<0, -SUMIFS(Tableau1[Montant], Tableau1[Catégorie principale], \"Transport\", Tableau1[Mois], D$3, Tableau1[Année], $B$2), 0)","v":0},{"$f":"IF((SUMIFS(Tableau1[Montant], Tableau1[Catégorie principale], \"Transport\", Tableau1[Mois], E$3, Tableau1[Année], $B$2))<0, -SUMIFS(Tableau1[Montant], Tableau1[Catégorie principale], \"Transport\", Tableau1[Mois], E$3, Tableau1[Année], $B$2), 0)","v":0},{"$f":"IF((SUMIFS(Tableau1[Montant], Tableau1[Catégorie principale], \"Transport\", Tableau1[Mois], F$3, Tableau1[Année], $B$2))<0, -SUMIFS(Tableau1[Montant], Tableau1[Catégorie principale], \"Transport\", Tableau1[Mois], F$3, Tableau1[Année], $B$2), 0)","v":0},{"$f":"IF((SUMIFS(Tableau1[Montant], Tableau1[Catégorie principale], \"Transport\", Tableau1[Mois], G$3, Tableau1[Année], $B$2))<0, -SUMIFS(Tableau1[Montant], Tableau1[Catégorie principale], \"Transport\", Tableau1[Mois], G$3, Tableau1[Année], $B$2), 0)","v":0},{"$f":"IF((SUMIFS(Tableau1[Montant], Tableau1[Catégorie principale], \"Transport\", Tableau1[Mois], H$3, Tableau1[Année], $B$2))<0, -SUMIFS(Tableau1[Montant], Tableau1[Catégorie principale], \"Transport\", Tableau1[Mois], H$3, Tableau1[Année], $B$2), 0)","v":0},{"$f":"IF((SUMIFS(Tableau1[Montant], Tableau1[Catégorie principale], \"Transport\", Tableau1[Mois], I$3, Tableau1[Année], $B$2))<0, -SUMIFS(Tableau1[Montant], Tableau1[Catégorie principale], \"Transport\", Tableau1[Mois], I$3, Tableau1[Année], $B$2), 0)","v":0},{"$f":"IF((SUMIFS(Tableau1[Montant], Tableau1[Catégorie principale], \"Transport\", Tableau1[Mois], J$3, Tableau1[Année], $B$2))<0, -SUMIFS(Tableau1[Montant], Tableau1[Catégorie principale], \"Transport\", Tableau1[Mois], J$3, Tableau1[Année], $B$2), 0)","v":0},{"$f":"IF((SUMIFS(Tableau1[Montant], Tableau1[Catégorie principale], \"Transport\", Tableau1[Mois], K$3, Tableau1[Année], $B$2))<0, -SUMIFS(Tableau1[Montant], Tableau1[Catégorie principale], \"Transport\", Tableau1[Mois], K$3, Tableau1[Année], $B$2), 0)","v":0},{"$f":"IF((SUMIFS(Tableau1[Montant], Tableau1[Catégorie principale], \"Transport\", Tableau1[Mois], L$3, Tableau1[Année], $B$2))<0, -SUMIFS(Tableau1[Montant], Tableau1[Catégorie principale], \"Transport\", Tableau1[Mois], L$3, Tableau1[Année], $B$2), 0)","v":0},{"$f":"IF((SUMIFS(Tableau1[Montant], Tableau1[Catégorie principale], \"Transport\", Tableau1[Mois], M$3, Tableau1[Année], $B$2))<0, -SUMIFS(Tableau1[Montant], Tableau1[Catégorie principale], \"Transport\", Tableau1[Mois], M$3, Tableau1[Année], $B$2), 0)","v":0},null,"Pour graphique du bas"]
["Vacance",{"$f":"IF((SUMIFS(Tableau1[Montant], Tableau1[Catégorie principale], \"Vacances\", Tableau1[Mois], B$3, Tableau1[Année], $B$2))<0, -SUMIFS(Tableau1[Montant], Tableau1[Catégorie principale], \"Vacances\", Tableau1[Mois], B$3, Tableau1[Année], $B$2), 0)","v":0},{"$f":"IF((SUMIFS(Tableau1[Montant], Tableau1[Catégorie principale], \"Vacances\", Tableau1[Mois], C$3, Tableau1[Année], $B$2))<0, -SUMIFS(Tableau1[Montant], Tableau1[Catégorie principale], \"Vacances\", Tableau1[Mois], C$3, Tableau1[Année], $B$2), 0)","v":0},{"$f":"IF((SUMIFS(Tableau1[Montant], Tableau1[Catégorie principale], \"Vacances\", Tableau1[Mois], D$3, Tableau1[Année], $B$2))<0, -SUMIFS(Tableau1[Montant], Tableau1[Catégorie principale], \"Vacances\", Tableau1[Mois], D$3, Tableau1[Année], $B$2), 0)","v":0},{"$f":"IF((SUMIFS(Tableau1[Montant], Tableau1[Catégorie principale], \"Vacances\", Tableau1[Mois], E$3, Tableau1[Année], $B$2))<0, -SUMIFS(Tableau1[Montant], Tableau1[Catégorie principale], \"Vacances\", Tableau1[Mois], E$3, Tableau1[Année], $B$2), 0)","v":0},{"$f":"IF((SUMIFS(Tableau1[Montant], Tableau1[Catégorie principale], \"Vacances\", Tableau1[Mois], F$3, Tableau1[Année], $B$2))<0, -SUMIFS(Tableau1[Montant], Tableau1[Catégorie principale], \"Vacances\", Tableau1[Mois], F$3, Tableau1[Année], $B$2), 0)","v":0},{"$f":"IF((SUMIFS(Tableau1[Montant], Tableau1[Catégorie principale], \"Vacances\", Tableau1[Mois], G$3, Tableau1[Année], $B$2))<0, -SUMIFS(Tableau1[Montant], Tableau1[Catégorie principale], \"Vacances\", Tableau1[Mois], G$3, Tableau1[Année], $B$2), 0)","v":0},{"$f":"IF((SUMIFS(Tableau1[Montant], Tableau1[Catégorie principale], \"Vacances\", Tableau1[Mois], H$3, Tableau1[Année], $B$2))<0, -SUMIFS(Tableau1[Montant], Tableau1[Catégorie principale], \"Vacances\", Tableau1[Mois], H$3, Tableau1[Année], $B$2), 0)","v":0},{"$f":"IF((SUMIFS(Tableau1[Montant], Tableau1[Catégorie principale], \"Vacances\", Tableau1[Mois], I$3, Tableau1[Année], $B$2))<0, -SUMIFS(Tableau1[Montant], Tableau1[Catégorie principale], \"Vacances\", Tableau1[Mois], I$3, Tableau1[Année], $B$2), 0)","v":0},{"$f":"IF((SUMIFS(Tableau1[Montant], Tableau1[Catégorie principale], \"Vacances\", Tableau1[Mois], J$3, Tableau1[Année], $B$2))<0, -SUMIFS(Tableau1[Montant], Tableau1[Catégorie principale], \"Vacances\", Tableau1[Mois], J$3, Tableau1[Année], $B$2), 0)","v":0},{"$f":"IF((SUMIFS(Tableau1[Montant], Tableau1[Catégorie principale], \"Vacances\", Tableau1[Mois], K$3, Tableau1[Année], $B$2))<0, -SUMIFS(Tableau1[Montant], Tableau1[Catégorie principale], \"Vacances\", Tableau1[Mois], K$3, Tableau1[Année], $B$2), 0)","v":0},{"$f":"IF((SUMIFS(Tableau1[Montant], Tableau1[Catégorie principale], \"Vacances\", Tableau1[Mois], L$3, Tableau1[Année], $B$2))<0, -SUMIFS(Tableau1[Montant], Tableau1[Catégorie principale], \"Vacances\", Tableau1[Mois], L$3, Tableau1[Année], $B$2), 0)","v":0},{"$f":"IF((SUMIFS(Tableau1[Montant], Tableau1[Catégorie principale], \"Vacances\", Tableau1[Mois], M$3, Tableau1[Année], $B$2))<0, -SUMIFS(Tableau1[Montant], Tableau1[Catégorie principale], \"Vacances\", Tableau1[Mois], M$3, Tableau1[Année], $B$2), 0)","v":0},null,"Pour graphique du bas"]
["Total",{"$f":"SUM(B6:B13)","v":0},0,0,0,0,0,0,0,0,0,0,0]
["Total",{"$f":"IF(B$14>0, B$14, NA())","v":{"$error":"#N/A"}},{"$f":"IF(C$14>0, C$14, NA())","v":{"$error":"#N/A"}},{"$error":"#N/A"},{"$error":"#N/A"},{"$error":"#N/A"},{"$error":"#N/A"},{"$error":"#N/A"},{"$error":"#N/A"},{"$error":"#N/A"},{"$error":"#N/A"},{"$error":"#N/A"},{"$error":"#N/A"},null,"Pour graphique du milieu et graphique du bas"]
["Reste en fin de mois",{"$f":"B4-B14","v":0},{"$f":"C4-C14","v":0},{"$f":"D4-D14","v":0},0,0,0,0,0,0,0,0,0]
[]
["Année en cour","Valeurs pour graphique (Année en cour)"]
[{"$f":"YEAR(TODAY())","v":2019}]
["Catégories","Janvier","Février","Mars","Avril","Mai","Juin","Juillet","Août","Septembre","Octobre","Novembre","Décembre"]
["Salaire",{"$f":"SUMIFS(Tableau1[Montant], Tableau1[Catégorie principale], \"Salaire (-impôts) & autre revenu\", Tableau1[Mois], B$3, Tableau1[Année], $A$19)","v":0},{"$f":"SUMIFS(Tableau1[Montant], Tableau1[Catégorie principale], \"Salaire (-impôts) & autre revenu\", Tableau1[Mois], C$3, Tableau1[Année], $A$19)","v":0},{"$f":"SUMIFS(Tableau1[Montant], Tableau1[Catégorie principale], \"Salaire (-impôts) & autre revenu\", Tableau1[Mois], D$3, Tableau1[Année], $A$19)","v":0},{"$f":"SUMIFS(Tableau1[Montant], Tableau1[Catégorie principale], \"Salaire (-impôts) & autre revenu\", Tableau1[Mois], E$3, Tableau1[Année], $A$19)","v":0},{"$f":"SUMIFS(Tableau1[Montant], Tableau1[Catégorie principale], \"Salaire (-impôts) & autre revenu\", Tableau1[Mois], F$3, Tableau1[Année], $A$19)","v":0},{"$f":"SUMIFS(Tableau1[Montant], Tableau1[Catégorie principale], \"Salaire (-impôts) & autre revenu\", Tableau1[Mois], G$3, Tableau1[Année], $A$19)","v":0},{"$f":"SUMIFS(Tableau1[Montant], Tableau1[Catégorie principale], \"Salaire (-impôts) & autre revenu\", Tableau1[Mois], H$3, Tableau1[Année], $A$19)","v":0},{"$f":"SUMIFS(Tableau1[Montant], Tableau1[Catégorie principale], \"Salaire (-impôts) & autre revenu\", Tableau1[Mois], I$3, Tableau1[Année], $A$19)","v":0},{"$f":"SUMIFS(Tableau1[Montant], Tableau1[Catégorie principale], \"Salaire (-impôts) & autre revenu\", Tableau1[Mois], J$3, Tableau1[Année], $A$19)","v":0},{"$f":"SUMIFS(Tableau1[Montant], Tableau1[Catégorie principale], \"Salaire (-impôts) & autre revenu\", Tableau1[Mois], K$3, Tableau1[Année], $A$19)","v":0},{"$f":"SUMIFS(Tableau1[Montant], Tableau1[Catégorie principale], \"Salaire (-impôts) & autre revenu\", Tableau1[Mois], L$3, Tableau1[Année], $A$19)","v":0},{"$f":"SUMIFS(Tableau1[Montant], Tableau1[Catégorie principale], \"Salaire (-impôts) & autre revenu\", Tableau1[Mois], M$3, Tableau1[Année], $A$19)","v":0}]
["Charges habitation",{"$f":"IF((SUMIFS(Tableau1[Montant], Tableau1[Catégorie principale], \"Charges habitation\", Tableau1[Mois], B$3, Tableau1[Année], $A$19))<0, -SUMIFS(Tableau1[Montant], Tableau1[Catégorie principale], \"Charges habitation\", Tableau1[Mois], B$3, Tableau1[Année], $A$19), 0)","v":0},{"$f":"IF((SUMIFS(Tableau1[Montant], Tableau1[Catégorie principale], \"Charges habitation\", Tableau1[Mois], C$3, Tableau1[Année], $A$19))<0, -SUMIFS(Tableau1[Montant], Tableau1[Catégorie principale], \"Charges habitation\", Tableau1[Mois], C$3, Tableau1[Année], $A$19), 0)","v":0},{"$f":"IF((SUMIFS(Tableau1[Montant], Tableau1[Catégorie principale], \"Charges habitation\", Tableau1[Mois], D$3, Tableau1[Année], $A$19))<0, -SUMIFS(Tableau1[Montant], Tableau1[Catégorie principale], \"Charges habitation\", Tableau1[Mois], D$3, Tableau1[Année], $A$19), 0)","v":0},{"$f":"IF((SUMIFS(Tableau1[Montant], Tableau1[Catégorie principale], \"Charges habitation\", Tableau1[Mois], E$3, Tableau1[Année], $A$19))<0, -SUMIFS(Tableau1[Montant], Tableau1[Catégorie principale], \"Charges habitation\", Tableau1[Mois], E$3, Tableau1[Année], $A$19), 0)","v":0},{"$f":"IF((SUMIFS(Tableau1[Montant], Tableau1[Catégorie principale], \"Charges habitation\", Tableau1[Mois], F$3, Tableau1[Année], $A$19))<0, -SUMIFS(Tableau1[Montant], Tableau1[Catégorie principale], \"Charges habitation\", Tableau1[Mois], F$3, Tableau1[Année], $A$19), 0)","v":0},{"$f":"IF((SUMIFS(Tableau1[Montant], Tableau1[Catégorie principale], \"Charges habitation\", Tableau1[Mois], G$3, Tableau1[Année], $A$19))<0, -SUMIFS(Tableau1[Montant], Tableau1[Catégorie principale], \"Charges habitation\", Tableau1[Mois], G$3, Tableau1[Année], $A$19), 0)","v":0},{"$f":"IF((SUMIFS(Tableau1[Montant], Tableau1[Catégorie principale], \"Charges habitation\", Tableau1[Mois], H$3, Tableau1[Année], $A$19))<0, -SUMIFS(Tableau1[Montant], Tableau1[Catégorie principale], \"Charges habitation\", Tableau1[Mois], H$3, Tableau1[Année], $A$19), 0)","v":0},{"$f":"IF((SUMIFS(Tableau1[Montant], Tableau1[Catégorie principale], \"Charges habitation\", Tableau1[Mois], I$3, Tableau1[Année], $A$19))<0, -SUMIFS(Tableau1[Montant], Tableau1[Catégorie principale], \"Charges habitation\", Tableau1[Mois], I$3, Tableau1[Année], $A$19), 0)","v":0},{"$f":"IF((SUMIFS(Tableau1[Montant], Tableau1[Catégorie principale], \"Charges habitation\", Tableau1[Mois], J$3, Tableau1[Année], $A$19))<0, -SUMIFS(Tableau1[Montant], Tableau1[Catégorie principale], \"Charges habitation\", Tableau1[Mois], J$3, Tableau1[Année], $A$19), 0)","v":0},{"$f":"IF((SUMIFS(Tableau1[Montant], Tableau1[Catégorie principale], \"Charges habitation\", Tableau1[Mois], K$3, Tableau1[Année], $A$19))<0, -SUMIFS(Tableau1[Montant], Tableau1[Catégorie principale], \"Charges habitation\", Tableau1[Mois], K$3, Tableau1[Année], $A$19), 0)","v":0},{"$f":"IF((SUMIFS(Tableau1[Montant], Tableau1[Catégorie principale], \"Charges habitation\", Tableau1[Mois], L$3, Tableau1[Année], $A$19))<0, -SUMIFS(Tableau1[Montant], Tableau1[Catégorie principale], \"Charges habitation\", Tableau1[Mois], L$3, Tableau1[Année], $A$19), 0)","v":0},{"$f":"IF((SUMIFS(Tableau1[Montant], Tableau1[Catégorie principale], \"Charges habitation\", Tableau1[Mois], M$3, Tableau1[Année], $A$19))<0, -SUMIFS(Tableau1[Montant], Tableau1[Catégorie principale], \"Charges habitation\", Tableau1[Mois], M$3, Tableau1[Année], $A$19), 0)","v":0}]
["Banque & autre",{"$f":"IF((SUMIFS(Tableau1[Montant], Tableau1[Catégorie principale], \"Banque\", Tableau1[Mois], B$3, Tableau1[Année], $A$19))<0, -SUMIFS(Tableau1[Montant], Tableau1[Catégorie principale], \"Banque\", Tableau1[Mois], B$3, Tableau1[Année], $A$19), 0)+IF((SUMIFS(Tableau1[Montant], Tableau1[Catégorie principale], \"Autres transactions\", Tableau1[Mois], B$3, Tableau1[Année], $A$19))<0, -SUMIFS(Tableau1[Montant], Tableau1[Catégorie principale], \"Autres transactions\", Tableau1[Mois], B$3, Tableau1[Année], $A$19), 0)","v":0},{"$f":"IF((SUMIFS(Tableau1[Montant], Tableau1[Catégorie principale], \"Banque\", Tableau1[Mois], C$3, Tableau1[Année], $A$19))<0, -SUMIFS(Tableau1[Montant], Tableau1[Catégorie principale], \"Banque\", Tableau1[Mois], C$3, Tableau1[Année], $A$19), 0)+IF((SUMIFS(Tableau1[Montant], Tableau1[Catégorie principale], \"Autres transactions\", Tableau1[Mois], C$3, Tableau1[Année], $A$19))<0, -SUMIFS(Tableau1[Montant], Tableau1[Catégorie principale], \"Autres transactions\", Tableau1[Mois], C$3, Tableau1[Année], $A$19), 0)","v":0},{"$f":"IF((SUMIFS(Tableau1[Montant], Tableau1[Catégorie principale], \"Banque\", Tableau1[Mois], D$3, Tableau1[Année], $A$19))<0, -SUMIFS(Tableau1[Montant], Tableau1[Catégorie principale], \"Banque\", Tableau1[Mois], D$3, Tableau1[Année], $A$19), 0)+IF((SUMIFS(Tableau1[Montant], Tableau1[Catégorie principale], \"Autres transactions\", Tableau1[Mois], D$3, Tableau1[Année], $A$19))<0, -SUMIFS(Tableau1[Montant], Tableau1[Catégorie principale], \"Autres transactions\", Tableau1[Mois], D$3, Tableau1[Année], $A$19), 0)","v":0},{"$f":"IF((SUMIFS(Tableau1[Montant], Tableau1[Catégorie principale], \"Banque\", Tableau1[Mois], E$3, Tableau1[Année], $A$19))<0, -SUMIFS(Tableau1[Montant], Tableau1[Catégorie principale], \"Banque\", Tableau1[Mois], E$3, Tableau1[Année], $A$19), 0)+IF((SUMIFS(Tableau1[Montant], Tableau1[Catégorie principale], \"Autres transactions\", Tableau1[Mois], E$3, Tableau1[Année], $A$19))<0, -SUMIFS(Tableau1[Montant], Tableau1[Catégorie principale], \"Autres transactions\", Tableau1[Mois], E$3, Tableau1[Année], $A$19), 0)","v":0},{"$f":"IF((SUMIFS(Tableau1[Montant], Tableau1[Catégorie principale], \"Banque\", Tableau1[Mois], F$3, Tableau1[Année], $A$19))<0, -SUMIFS(Tableau1[Montant], Tableau1[Catégorie principale], \"Banque\", Tableau1[Mois], F$3, Tableau1[Année], $A$19), 0)+IF((SUMIFS(Tableau1[Montant], Tableau1[Catégorie principale], \"Autres transactions\", Tableau1[Mois], F$3, Tableau1[Année], $A$19))<0, -SUMIFS(Tableau1[Montant], Tableau1[Catégorie principale], \"Autres transactions\", Tableau1[Mois], F$3, Tableau1[Année], $A$19), 0)","v":0},{"$f":"IF((SUMIFS(Tableau1[Montant], Tableau1[Catégorie principale], \"Banque\", Tableau1[Mois], G$3, Tableau1[Année], $A$19))<0, -SUMIFS(Tableau1[Montant], Tableau1[Catégorie principale], \"Banque\", Tableau1[Mois], G$3, Tableau1[Année], $A$19), 0)+IF((SUMIFS(Tableau1[Montant], Tableau1[Catégorie principale], \"Autres transactions\", Tableau1[Mois], G$3, Tableau1[Année], $A$19))<0, -SUMIFS(Tableau1[Montant], Tableau1[Catégorie principale], \"Autres transactions\", Tableau1[Mois], G$3, Tableau1[Année], $A$19), 0)","v":0},{"$f":"IF((SUMIFS(Tableau1[Montant], Tableau1[Catégorie principale], \"Banque\", Tableau1[Mois], H$3, Tableau1[Année], $A$19))<0, -SUMIFS(Tableau1[Montant], Tableau1[Catégorie principale], \"Banque\", Tableau1[Mois], H$3, Tableau1[Année], $A$19), 0)+IF((SUMIFS(Tableau1[Montant], Tableau1[Catégorie principale], \"Autres transactions\", Tableau1[Mois], H$3, Tableau1[Année], $A$19))<0, -SUMIFS(Tableau1[Montant], Tableau1[Catégorie principale], \"Autres transactions\", Tableau1[Mois], H$3, Tableau1[Année], $A$19), 0)","v":0},{"$f":"IF((SUMIFS(Tableau1[Montant], Tableau1[Catégorie principale], \"Banque\", Tableau1[Mois], I$3, Tableau1[Année], $A$19))<0, -SUMIFS(Tableau1[Montant], Tableau1[Catégorie principale], \"Banque\", Tableau1[Mois], I$3, Tableau1[Année], $A$19), 0)+IF((SUMIFS(Tableau1[Montant], Tableau1[Catégorie principale], \"Autres transactions\", Tableau1[Mois], I$3, Tableau1[Année], $A$19))<0, -SUMIFS(Tableau1[Montant], Tableau1[Catégorie principale], \"Autres transactions\", Tableau1[Mois], I$3, Tableau1[Année], $A$19), 0)","v":0},{"$f":"IF((SUMIFS(Tableau1[Montant], Tableau1[Catégorie principale], \"Banque\", Tableau1[Mois], J$3, Tableau1[Année], $A$19))<0, -SUMIFS(Tableau1[Montant], Tableau1[Catégorie principale], \"Banque\", Tableau1[Mois], J$3, Tableau1[Année], $A$19), 0)+IF((SUMIFS(Tableau1[Montant], Tableau1[Catégorie principale], \"Autres transactions\", Tableau1[Mois], J$3, Tableau1[Année], $A$19))<0, -SUMIFS(Tableau1[Montant], Tableau1[Catégorie principale], \"Autres transactions\", Tableau1[Mois], J$3, Tableau1[Année], $A$19), 0)","v":0},{"$f":"IF((SUMIFS(Tableau1[Montant], Tableau1[Catégorie principale], \"Banque\", Tableau1[Mois], K$3, Tableau1[Année], $A$19))<0, -SUMIFS(Tableau1[Montant], Tableau1[Catégorie principale], \"Banque\", Tableau1[Mois], K$3, Tableau1[Année], $A$19), 0)+IF((SUMIFS(Tableau1[Montant], Tableau1[Catégorie principale], \"Autres transactions\", Tableau1[Mois], K$3, Tableau1[Année], $A$19))<0, -SUMIFS(Tableau1[Montant], Tableau1[Catégorie principale], \"Autres transactions\", Tableau1[Mois], K$3, Tableau1[Année], $A$19), 0)","v":0},{"$f":"IF((SUMIFS(Tableau1[Montant], Tableau1[Catégorie principale], \"Banque\", Tableau1[Mois], L$3, Tableau1[Année], $A$19))<0, -SUMIFS(Tableau1[Montant], Tableau1[Catégorie principale], \"Banque\", Tableau1[Mois], L$3, Tableau1[Année], $A$19), 0)+IF((SUMIFS(Tableau1[Montant], Tableau1[Catégorie principale], \"Autres transactions\", Tableau1[Mois], L$3, Tableau1[Année], $A$19))<0, -SUMIFS(Tableau1[Montant], Tableau1[Catégorie principale], \"Autres transactions\", Tableau1[Mois], L$3, Tableau1[Année], $A$19), 0)","v":0},{"$f":"IF((SUMIFS(Tableau1[Montant], Tableau1[Catégorie principale], \"Banque\", Tableau1[Mois], M$3, Tableau1[Année], $A$19))<0, -SUMIFS(Tableau1[Montant], Tableau1[Catégorie principale], \"Banque\", Tableau1[Mois], M$3, Tableau1[Année], $A$19), 0)+IF((SUMIFS(Tableau1[Montant], Tableau1[Catégorie principale], \"Autres transactions\", Tableau1[Mois], M$3, Tableau1[Année], $A$19))<0, -SUMIFS(Tableau1[Montant], Tableau1[Catégorie principale], \"Autres transactions\", Tableau1[Mois], M$3, Tableau1[Année], $A$19), 0)","v":0}]
["Pannier repas",{"$f":"IF((SUMIFS(Tableau1[Montant], Tableau1[Catégorie principale], \"Boulot\", Tableau1[Mois], B$3, Tableau1[Année], $A$19))<0, -SUMIFS(Tableau1[Montant], Tableau1[Catégorie principale], \"Boulot\", Tableau1[Mois], B$3, Tableau1[Année], $A$19), 0)","v":0},{"$f":"IF((SUMIFS(Tableau1[Montant], Tableau1[Catégorie principale], \"Boulot\", Tableau1[Mois], C$3, Tableau1[Année], $A$19))<0, -SUMIFS(Tableau1[Montant], Tableau1[Catégorie principale], \"Boulot\", Tableau1[Mois], C$3, Tableau1[Année], $A$19), 0)","v":0},{"$f":"IF((SUMIFS(Tableau1[Montant], Tableau1[Catégorie principale], \"Boulot\", Tableau1[Mois], D$3, Tableau1[Année], $A$19))<0, -SUMIFS(Tableau1[Montant], Tableau1[Catégorie principale], \"Boulot\", Tableau1[Mois], D$3, Tableau1[Année], $A$19), 0)","v":0},{"$f":"IF((SUMIFS(Tableau1[Montant], Tableau1[Catégorie principale], \"Boulot\", Tableau1[Mois], E$3, Tableau1[Année], $A$19))<0, -SUMIFS(Tableau1[Montant], Tableau1[Catégorie principale], \"Boulot\", Tableau1[Mois], E$3, Tableau1[Année], $A$19), 0)","v":0},{"$f":"IF((SUMIFS(Tableau1[Montant], Tableau1[Catégorie principale], \"Boulot\", Tableau1[Mois], F$3, Tableau1[Année], $A$19))<0, -SUMIFS(Tableau1[Montant], Tableau1[Catégorie principale], \"Boulot\", Tableau1[Mois], F$3, Tableau1[Année], $A$19), 0)","v":0},{"$f":"IF((SUMIFS(Tableau1[Montant], Tableau1[Catégorie principale], \"Boulot\", Tableau1[Mois], G$3, Tableau1[Année], $A$19))<0, -SUMIFS(Tableau1[Montant], Tableau1[Catégorie principale], \"Boulot\", Tableau1[Mois], G$3, Tableau1[Année], $A$19), 0)","v":0},{"$f":"IF((SUMIFS(Tableau1[Montant], Tableau1[Catégorie principale], \"Boulot\", Tableau1[Mois], H$3, Tableau1[Année], $A$19))<0, -SUMIFS(Tableau1[Montant], Tableau1[Catégorie principale], \"Boulot\", Tableau1[Mois], H$3, Tableau1[Année], $A$19), 0)","v":0},{"$f":"IF((SUMIFS(Tableau1[Montant], Tableau1[Catégorie principale], \"Boulot\", Tableau1[Mois], I$3, Tableau1[Année], $A$19))<0, -SUMIFS(Tableau1[Montant], Tableau1[Catégorie principale], \"Boulot\", Tableau1[Mois], I$3, Tableau1[Année], $A$19), 0)","v":0},{"$f":"IF((SUMIFS(Tableau1[Montant], Tableau1[Catégorie principale], \"Boulot\", Tableau1[Mois], J$3, Tableau1[Année], $A$19))<0, -SUMIFS(Tableau1[Montant], Tableau1[Catégorie principale], \"Boulot\", Tableau1[Mois], J$3, Tableau1[Année], $A$19), 0)","v":0},{"$f":"IF((SUMIFS(Tableau1[Montant], Tableau1[Catégorie principale], \"Boulot\", Tableau1[Mois], K$3, Tableau1[Année], $A$19))<0, -SUMIFS(Tableau1[Montant], Tableau1[Catégorie principale], \"Boulot\", Tableau1[Mois], K$3, Tableau1[Année], $A$19), 0)","v":0},{"$f":"IF((SUMIFS(Tableau1[Montant], Tableau1[Catégorie principale], \"Boulot\", Tableau1[Mois], L$3, Tableau1[Année], $A$19))<0, -SUMIFS(Tableau1[Montant], Tableau1[Catégorie principale], \"Boulot\", Tableau1[Mois], L$3, Tableau1[Année], $A$19), 0)","v":0},{"$f":"IF((SUMIFS(Tableau1[Montant], Tableau1[Catégorie principale], \"Boulot\", Tableau1[Mois], M$3, Tableau1[Année], $A$19))<0, -SUMIFS(Tableau1[Montant], Tableau1[Catégorie principale], \"Boulot\", Tableau1[Mois], M$3, Tableau1[Année], $A$19), 0)","v":0}]
["Courses & autres achats",{"$f":"IF((SUMIFS(Tableau1[Montant], Tableau1[Catégorie principale], \"Courses & Achats divers\", Tableau1[Mois], B$3, Tableau1[Année], $A$19)+SUMIFS(Tableau1[Montant], Tableau1[Catégorie principale], \"Commande Internet\", Tableau1[Mois], B$3, Tableau1[Année], $A$19))<0, -(SUMIFS(Tableau1[Montant], Tableau1[Catégorie principale], \"Courses & Achats divers\", Tableau1[Mois], B$3, Tableau1[Année], $A$19)+SUMIFS(Tableau1[Montant], Tableau1[Catégorie principale], \"Commande Internet\", Tableau1[Mois], B$3, Tableau1[Année], $A$19)), (SUMIFS(Tableau1[Montant], Tableau1[Catégorie principale], \"Courses & Achats divers\", Tableau1[Mois], B$3, Tableau1[Année], $A$19)+SUMIFS(Tableau1[Montant], Tableau1[Catégorie principale], \"Commande Internet\", Tableau1[Mois], B$3, Tableau1[Année], $A$19)))","v":30},{"$f":"IF((SUMIFS(Tableau1[Montant], Tableau1[Catégorie principale], \"Courses & Achats divers\", Tableau1[Mois], C$3, Tableau1[Année], $A$19)+SUMIFS(Tableau1[Montant], Tableau1[Catégorie principale], \"Commande Internet\", Tableau1[Mois], C$3, Tableau1[Année], $A$19))<0, -(SUMIFS(Tableau1[Montant], Tableau1[Catégorie principale], \"Courses & Achats divers\", Tableau1[Mois], C$3, Tableau1[Année], $A$19)+SUMIFS(Tableau1[Montant], Tableau1[Catégorie principale], \"Commande Internet\", Tableau1[Mois], C$3, Tableau1[Année], $A$19)), (SUMIFS(Tableau1[Montant], Tableau1[Catégorie principale], \"Courses & Achats divers\", Tableau1[Mois], C$3, Tableau1[Année], $A$19)+SUMIFS(Tableau1[Montant], Tableau1[Catégorie principale], \"Commande Internet\", Tableau1[Mois], C$3, Tableau1[Année], $A$19)))","v":0},{"$f":"IF((SUMIFS(Tableau1[Montant], Tableau1[Catégorie principale], \"Courses & Achats divers\", Tableau1[Mois], D$3, Tableau1[Année], $A$19)+SUMIFS(Tableau1[Montant], Tableau1[Catégorie principale], \"Commande Internet\", Tableau1[Mois], D$3, Tableau1[Année], $A$19))<0, -(SUMIFS(Tableau1[Montant], Tableau1[Catégorie principale], \"Courses & Achats divers\", Tableau1[Mois], D$3, Tableau1[Année], $A$19)+SUMIFS(Tableau1[Montant], Tableau1[Catégorie principale], \"Commande Internet\", Tableau1[Mois], D$3, Tableau1[Année], $A$19)), (SUMIFS(Tableau1[Montant], Tableau1[Catégorie principale], \"Courses & Achats divers\", Tableau1[Mois], D$3, Tableau1[Année], $A$19)+SUMIFS(Tableau1[Montant], Tableau1[Catégorie principale], \"Commande Internet\", Tableau1[Mois], D$3, Tableau1[Année], $A$19)))","v":0},{"$f":"IF((SUMIFS(Tableau1[Montant], Tableau1[Catégorie principale], \"Courses & Achats divers\", Tableau1[Mois], E$3, Tableau1[Année], $A$19)+SUMIFS(Tableau1[Montant], Tableau1[Catégorie principale], \"Commande Internet\", Tableau1[Mois], E$3, Tableau1[Année], $A$19))<0, -(SUMIFS(Tableau1[Montant], Tableau1[Catégorie principale], \"Courses & Achats divers\", Tableau1[Mois], E$3, Tableau1[Année], $A$19)+SUMIFS(Tableau1[Montant], Tableau1[Catégorie principale], \"Commande Internet\", Tableau1[Mois], E$3, Tableau1[Année], $A$19)), (SUMIFS(Tableau1[Montant], Tableau1[Catégorie principale], \"Courses & Achats divers\", Tableau1[Mois], E$3, Tableau1[Année], $A$19)+SUMIFS(Tableau1[Montant], Tableau1[Catégorie principale], \"Commande Internet\", Tableau1[Mois], E$3, Tableau1[Année], $A$19)))","v":0},{"$f":"IF((SUMIFS(Tableau1[Montant], Tableau1[Catégorie principale], \"Courses & Achats divers\", Tableau1[Mois], F$3, Tableau1[Année], $A$19)+SUMIFS(Tableau1[Montant], Tableau1[Catégorie principale], \"Commande Internet\", Tableau1[Mois], F$3, Tableau1[Année], $A$19))<0, -(SUMIFS(Tableau1[Montant], Tableau1[Catégorie principale], \"Courses & Achats divers\", Tableau1[Mois], F$3, Tableau1[Année], $A$19)+SUMIFS(Tableau1[Montant], Tableau1[Catégorie principale], \"Commande Internet\", Tableau1[Mois], F$3, Tableau1[Année], $A$19)), (SUMIFS(Tableau1[Montant], Tableau1[Catégorie principale], \"Courses & Achats divers\", Tableau1[Mois], F$3, Tableau1[Année], $A$19)+SUMIFS(Tableau1[Montant], Tableau1[Catégorie principale], \"Commande Internet\", Tableau1[Mois], F$3, Tableau1[Année], $A$19)))","v":0},{"$f":"IF((SUMIFS(Tableau1[Montant], Tableau1[Catégorie principale], \"Courses & Achats divers\", Tableau1[Mois], G$3, Tableau1[Année], $A$19)+SUMIFS(Tableau1[Montant], Tableau1[Catégorie principale], \"Commande Internet\", Tableau1[Mois], G$3, Tableau1[Année], $A$19))<0, -(SUMIFS(Tableau1[Montant], Tableau1[Catégorie principale], \"Courses & Achats divers\", Tableau1[Mois], G$3, Tableau1[Année], $A$19)+SUMIFS(Tableau1[Montant], Tableau1[Catégorie principale], \"Commande Internet\", Tableau1[Mois], G$3, Tableau1[Année], $A$19)), (SUMIFS(Tableau1[Montant], Tableau1[Catégorie principale], \"Courses & Achats divers\", Tableau1[Mois], G$3, Tableau1[Année], $A$19)+SUMIFS(Tableau1[Montant], Tableau1[Catégorie principale], \"Commande Internet\", Tableau1[Mois], G$3, Tableau1[Année], $A$19)))","v":0},{"$f":"IF((SUMIFS(Tableau1[Montant], Tableau1[Catégorie principale], \"Courses & Achats divers\", Tableau1[Mois], H$3, Tableau1[Année], $A$19)+SUMIFS(Tableau1[Montant], Tableau1[Catégorie principale], \"Commande Internet\", Tableau1[Mois], H$3, Tableau1[Année], $A$19))<0, -(SUMIFS(Tableau1[Montant], Tableau1[Catégorie principale], \"Courses & Achats divers\", Tableau1[Mois], H$3, Tableau1[Année], $A$19)+SUMIFS(Tableau1[Montant], Tableau1[Catégorie principale], \"Commande Internet\", Tableau1[Mois], H$3, Tableau1[Année], $A$19)), (SUMIFS(Tableau1[Montant], Tableau1[Catégorie principale], \"Courses & Achats divers\", Tableau1[Mois], H$3, Tableau1[Année], $A$19)+SUMIFS(Tableau1[Montant], Tableau1[Catégorie principale], \"Commande Internet\", Tableau1[Mois], H$3, Tableau1[Année], $A$19)))","v":0},{"$f":"IF((SUMIFS(Tableau1[Montant], Tableau1[Catégorie principale], \"Courses & Achats divers\", Tableau1[Mois], I$3, Tableau1[Année], $A$19)+SUMIFS(Tableau1[Montant], Tableau1[Catégorie principale], \"Commande Internet\", Tableau1[Mois], I$3, Tableau1[Année], $A$19))<0, -(SUMIFS(Tableau1[Montant], Tableau1[Catégorie principale], \"Courses & Achats divers\", Tableau1[Mois], I$3, Tableau1[Année], $A$19)+SUMIFS(Tableau1[Montant], Tableau1[Catégorie principale], \"Commande Internet\", Tableau1[Mois], I$3, Tableau1[Année], $A$19)), (SUMIFS(Tableau1[Montant], Tableau1[Catégorie principale], \"Courses & Achats divers\", Tableau1[Mois], I$3, Tableau1[Année], $A$19)+SUMIFS(Tableau1[Montant], Tableau1[Catégorie principale], \"Commande Internet\", Tableau1[Mois], I$3, Tableau1[Année], $A$19)))","v":0},{"$f":"IF((SUMIFS(Tableau1[Montant], Tableau1[Catégorie principale], \"Courses & Achats divers\", Tableau1[Mois], J$3, Tableau1[Année], $A$19)+SUMIFS(Tableau1[Montant], Tableau1[Catégorie principale], \"Commande Internet\", Tableau1[Mois], J$3, Tableau1[Année], $A$19))<0, -(SUMIFS(Tableau1[Montant], Tableau1[Catégorie principale], \"Courses & Achats divers\", Tableau1[Mois], J$3, Tableau1[Année], $A$19)+SUMIFS(Tableau1[Montant], Tableau1[Catégorie principale], \"Commande Internet\", Tableau1[Mois], J$3, Tableau1[Année], $A$19)), (SUMIFS(Tableau1[Montant], Tableau1[Catégorie principale], \"Courses & Achats divers\", Tableau1[Mois], J$3, Tableau1[Année], $A$19)+SUMIFS(Tableau1[Montant], Tableau1[Catégorie principale], \"Commande Internet\", Tableau1[Mois], J$3, Tableau1[Année], $A$19)))","v":0},{"$f":"IF((SUMIFS(Tableau1[Montant], Tableau1[Catégorie principale], \"Courses & Achats divers\", Tableau1[Mois], K$3, Tableau1[Année], $A$19)+SUMIFS(Tableau1[Montant], Tableau1[Catégorie principale], \"Commande Internet\", Tableau1[Mois], K$3, Tableau1[Année], $A$19))<0, -(SUMIFS(Tableau1[Montant], Tableau1[Catégorie principale], \"Courses & Achats divers\", Tableau1[Mois], K$3, Tableau1[Année], $A$19)+SUMIFS(Tableau1[Montant], Tableau1[Catégorie principale], \"Commande Internet\", Tableau1[Mois], K$3, Tableau1[Année], $A$19)), (SUMIFS(Tableau1[Montant], Tableau1[Catégorie principale], \"Courses & Achats divers\", Tableau1[Mois], K$3, Tableau1[Année], $A$19)+SUMIFS(Tableau1[Montant], Tableau1[Catégorie principale], \"Commande Internet\", Tableau1[Mois], K$3, Tableau1[Année], $A$19)))","v":0},{"$f":"IF((SUMIFS(Tableau1[Montant], Tableau1[Catégorie principale], \"Courses & Achats divers\", Tableau1[Mois], L$3, Tableau1[Année], $A$19)+SUMIFS(Tableau1[Montant], Tableau1[Catégorie principale], \"Commande Internet\", Tableau1[Mois], L$3, Tableau1[Année], $A$19))<0, -(SUMIFS(Tableau1[Montant], Tableau1[Catégorie principale], \"Courses & Achats divers\", Tableau1[Mois], L$3, Tableau1[Année], $A$19)+SUMIFS(Tableau1[Montant], Tableau1[Catégorie principale], \"Commande Internet\", Tableau1[Mois], L$3, Tableau1[Année], $A$19)), (SUMIFS(Tableau1[Montant], Tableau1[Catégorie principale], \"Courses & Achats divers\", Tableau1[Mois], L$3, Tableau1[Année], $A$19)+SUMIFS(Tableau1[Montant], Tableau1[Catégorie principale], \"Commande Internet\", Tableau1[Mois], L$3, Tableau1[Année], $A$19)))","v":0},{"$f":"IF((SUMIFS(Tableau1[Montant], Tableau1[Catégorie principale], \"Courses & Achats divers\", Tableau1[Mois], M$3, Tableau1[Année], $A$19)+SUMIFS(Tableau1[Montant], Tableau1[Catégorie principale], \"Commande Internet\", Tableau1[Mois], M$3, Tableau1[Année], $A$19))<0, -(SUMIFS(Tableau1[Montant], Tableau1[Catégorie principale], \"Courses & Achats divers\", Tableau1[Mois], M$3, Tableau1[Année], $A$19)+SUMIFS(Tableau1[Montant], Tableau1[Catégorie principale], \"Commande Internet\", Tableau1[Mois], M$3, Tableau1[Année], $A$19)), (SUMIFS(Tableau1[Montant], Tableau1[Catégorie principale], \"Courses & Achats divers\", Tableau1[Mois], M$3, Tableau1[Année], $A$19)+SUMIFS(Tableau1[Montant], Tableau1[Catégorie principale], \"Commande Internet\", Tableau1[Mois], M$3, Tableau1[Année], $A$19)))","v":0}]
["Santé",{"$f":"IF((SUMIFS(Tableau1[Montant], Tableau1[Catégorie principale], \"Santé\", Tableau1[Mois], B$3, Tableau1[Année], $A$19))<0, -SUMIFS(Tableau1[Montant], Tableau1[Catégorie principale], \"Santé\", Tableau1[Mois], B$3, Tableau1[Année], $A$19), 0)","v":0},{"$f":"IF((SUMIFS(Tableau1[Montant], Tableau1[Catégorie principale], \"Santé\", Tableau1[Mois], C$3, Tableau1[Année], $A$19))<0, -SUMIFS(Tableau1[Montant], Tableau1[Catégorie principale], \"Santé\", Tableau1[Mois], C$3, Tableau1[Année], $A$19), 0)","v":0},{"$f":"IF((SUMIFS(Tableau1[Montant], Tableau1[Catégorie principale], \"Santé\", Tableau1[Mois], D$3, Tableau1[Année], $A$19))<0, -SUMIFS(Tableau1[Montant], Tableau1[Catégorie principale], \"Santé\", Tableau1[Mois], D$3, Tableau1[Année], $A$19), 0)","v":0},{"$f":"IF((SUMIFS(Tableau1[Montant], Tableau1[Catégorie principale], \"Santé\", Tableau1[Mois], E$3, Tableau1[Année], $A$19))<0, -SUMIFS(Tableau1[Montant], Tableau1[Catégorie principale], \"Santé\", Tableau1[Mois], E$3, Tableau1[Année], $A$19), 0)","v":0},{"$f":"IF((SUMIFS(Tableau1[Montant], Tableau1[Catégorie principale], \"Santé\", Tableau1[Mois], F$3, Tableau1[Année], $A$19))<0, -SUMIFS(Tableau1[Montant], Tableau1[Catégorie principale], \"Santé\", Tableau1[Mois], F$3, Tableau1[Année], $A$19), 0)","v":0},{"$f":"IF((SUMIFS(Tableau1[Montant], Tableau1[Catégorie principale], \"Santé\", Tableau1[Mois], G$3, Tableau1[Année], $A$19))<0, -SUMIFS(Tableau1[Montant], Tableau1[Catégorie principale], \"Santé\", Tableau1[Mois], G$3, Tableau1[Année], $A$19), 0)","v":0},{"$f":"IF((SUMIFS(Tableau1[Montant], Tableau1[Catégorie principale], \"Santé\", Tableau1[Mois], H$3, Tableau1[Année], $A$19))<0, -SUMIFS(Tableau1[Montant], Tableau1[Catégorie principale], \"Santé\", Tableau1[Mois], H$3, Tableau1[Année], $A$19), 0)","v":0},{"$f":"IF((SUMIFS(Tableau1[Montant], Tableau1[Catégorie principale], \"Santé\", Tableau1[Mois], I$3, Tableau1[Année], $A$19))<0, -SUMIFS(Tableau1[Montant], Tableau1[Catégorie principale], \"Santé\", Tableau1[Mois], I$3, Tableau1[Année], $A$19), 0)","v":0},{"$f":"IF((SUMIFS(Tableau1[Montant], Tableau1[Catégorie principale], \"Santé\", Tableau1[Mois], J$3, Tableau1[Année], $A$19))<0, -SUMIFS(Tableau1[Montant], Tableau1[Catégorie principale], \"Santé\", Tableau1[Mois], J$3, Tableau1[Année], $A$19), 0)","v":0},{"$f":"IF((SUMIFS(Tableau1[Montant], Tableau1[Catégorie principale], \"Santé\", Tableau1[Mois], K$3, Tableau1[Année], $A$19))<0, -SUMIFS(Tableau1[Montant], Tableau1[Catégorie principale], \"Santé\", Tableau1[Mois], K$3, Tableau1[Année], $A$19), 0)","v":0},{"$f":"IF((SUMIFS(Tableau1[Montant], Tableau1[Catégorie principale], \"Santé\", Tableau1[Mois], L$3, Tableau1[Année], $A$19))<0, -SUMIFS(Tableau1[Montant], Tableau1[Catégorie principale], \"Santé\", Tableau1[Mois], L$3, Tableau1[Année], $A$19), 0)","v":0},{"$f":"IF((SUMIFS(Tableau1[Montant], Tableau1[Catégorie principale], \"Santé\", Tableau1[Mois], M$3, Tableau1[Année], $A$19))<0, -SUMIFS(Tableau1[Montant], Tableau1[Catégorie principale], \"Santé\", Tableau1[Mois], M$3, Tableau1[Année], $A$19), 0)","v":0}]
["Soirées, sorties et loisirs",{"$f":"IF((SUMIFS(Tableau1[Montant], Tableau1[Catégorie principale], \"Soirées, sorties et loisirs\", Tableau1[Mois], B$3, Tableau1[Année], $A$19))<0, -SUMIFS(Tableau1[Montant], Tableau1[Catégorie principale], \"Soirées, sorties et loisirs\", Tableau1[Mois], B$3, Tableau1[Année], $A$19), 0)","v":0},{"$f":"IF((SUMIFS(Tableau1[Montant], Tableau1[Catégorie principale], \"Soirées, sorties et loisirs\", Tableau1[Mois], C$3, Tableau1[Année], $A$19))<0, -SUMIFS(Tableau1[Montant], Tableau1[Catégorie principale], \"Soirées, sorties et loisirs\", Tableau1[Mois], C$3, Tableau1[Année], $A$19), 0)","v":0},{"$f":"IF((SUMIFS(Tableau1[Montant], Tableau1[Catégorie principale], \"Soirées, sorties et loisirs\", Tableau1[Mois], D$3, Tableau1[Année], $A$19))<0, -SUMIFS(Tableau1[Montant], Tableau1[Catégorie principale], \"Soirées, sorties et loisirs\", Tableau1[Mois], D$3, Tableau1[Année], $A$19), 0)","v":0},{"$f":"IF((SUMIFS(Tableau1[Montant], Tableau1[Catégorie principale], \"Soirées, sorties et loisirs\", Tableau1[Mois], E$3, Tableau1[Année], $A$19))<0, -SUMIFS(Tableau1[Montant], Tableau1[Catégorie principale], \"Soirées, sorties et loisirs\", Tableau1[Mois], E$3, Tableau1[Année], $A$19), 0)","v":0},{"$f":"IF((SUMIFS(Tableau1[Montant], Tableau1[Catégorie principale], \"Soirées, sorties et loisirs\", Tableau1[Mois], F$3, Tableau1[Année], $A$19))<0, -SUMIFS(Tableau1[Montant], Tableau1[Catégorie principale], \"Soirées, sorties et loisirs\", Tableau1[Mois], F$3, Tableau1[Année], $A$19), 0)","v":0},{"$f":"IF((SUMIFS(Tableau1[Montant], Tableau1[Catégorie principale], \"Soirées, sorties et loisirs\", Tableau1[Mois], G$3, Tableau1[Année], $A$19))<0, -SUMIFS(Tableau1[Montant], Tableau1[Catégorie principale], \"Soirées, sorties et loisirs\", Tableau1[Mois], G$3, Tableau1[Année], $A$19), 0)","v":0},{"$f":"IF((SUMIFS(Tableau1[Montant], Tableau1[Catégorie principale], \"Soirées, sorties et loisirs\", Tableau1[Mois], H$3, Tableau1[Année], $A$19))<0, -SUMIFS(Tableau1[Montant], Tableau1[Catégorie principale], \"Soirées, sorties et loisirs\", Tableau1[Mois], H$3, Tableau1[Année], $A$19), 0)","v":0},{"$f":"IF((SUMIFS(Tableau1[Montant], Tableau1[Catégorie principale], \"Soirées, sorties et loisirs\", Tableau1[Mois], I$3, Tableau1[Année], $A$19))<0, -SUMIFS(Tableau1[Montant], Tableau1[Catégorie principale], \"Soirées, sorties et loisirs\", Tableau1[Mois], I$3, Tableau1[Année], $A$19), 0)","v":0},{"$f":"IF((SUMIFS(Tableau1[Montant], Tableau1[Catégorie principale], \"Soirées, sorties et loisirs\", Tableau1[Mois], J$3, Tableau1[Année], $A$19))<0, -SUMIFS(Tableau1[Montant], Tableau1[Catégorie principale], \"Soirées, sorties et loisirs\", Tableau1[Mois], J$3, Tableau1[Année], $A$19), 0)","v":0},{"$f":"IF((SUMIFS(Tableau1[Montant], Tableau1[Catégorie principale], \"Soirées, sorties et loisirs\", Tableau1[Mois], K$3, Tableau1[Année], $A$19))<0, -SUMIFS(Tableau1[Montant], Tableau1[Catégorie principale], \"Soirées, sorties et loisirs\", Tableau1[Mois], K$3, Tableau1[Année], $A$19), 0)","v":0},{"$f":"IF((SUMIFS(Tableau1[Montant], Tableau1[Catégorie principale], \"Soirées, sorties et loisirs\", Tableau1[Mois], L$3, Tableau1[Année], $A$19))<0, -SUMIFS(Tableau1[Montant], Tableau1[Catégorie principale], \"Soirées, sorties et loisirs\", Tableau1[Mois], L$3, Tableau1[Année], $A$19), 0)","v":0},{"$f":"IF((SUMIFS(Tableau1[Montant], Tableau1[Catégorie principale], \"Soirées, sorties et loisirs\", Tableau1[Mois], M$3, Tableau1[Année], $A$19))<0, -SUMIFS(Tableau1[Montant], Tableau1[Catégorie principale], \"Soirées, sorties et loisirs\", Tableau1[Mois], M$3, Tableau1[Année], $A$19), 0)","v":0}]
["Transport",{"$f":"IF((SUMIFS(Tableau1[Montant], Tableau1[Catégorie principale], \"Transport\", Tableau1[Mois], B$3, Tableau1[Année], $A$19))<0, -SUMIFS(Tableau1[Montant], Tableau1[Catégorie principale], \"Transport\", Tableau1[Mois], B$3, Tableau1[Année], $A$19), 0)","v":0},{"$f":"IF((SUMIFS(Tableau1[Montant], Tableau1[Catégorie principale], \"Transport\", Tableau1[Mois], C$3, Tableau1[Année], $A$19))<0, -SUMIFS(Tableau1[Montant], Tableau1[Catégorie principale], \"Transport\", Tableau1[Mois], C$3, Tableau1[Année], $A$19), 0)","v":0},{"$f":"IF((SUMIFS(Tableau1[Montant], Tableau1[Catégorie principale], \"Transport\", Tableau1[Mois], D$3, Tableau1[Année], $A$19))<0, -SUMIFS(Tableau1[Montant], Tableau1[Catégorie principale], \"Transport\", Tableau1[Mois], D$3, Tableau1[Année], $A$19), 0)","v":0},{"$f":"IF((SUMIFS(Tableau1[Montant], Tableau1[Catégorie principale], \"Transport\", Tableau1[Mois], E$3, Tableau1[Année], $A$19))<0, -SUMIFS(Tableau1[Montant], Tableau1[Catégorie principale], \"Transport\", Tableau1[Mois], E$3, Tableau1[Année], $A$19), 0)","v":0},{"$f":"IF((SUMIFS(Tableau1[Montant], Tableau1[Catégorie principale], \"Transport\", Tableau1[Mois], F$3, Tableau1[Année], $A$19))<0, -SUMIFS(Tableau1[Montant], Tableau1[Catégorie principale], \"Transport\", Tableau1[Mois], F$3, Tableau1[Année], $A$19), 0)","v":0},{"$f":"IF((SUMIFS(Tableau1[Montant], Tableau1[Catégorie principale], \"Transport\", Tableau1[Mois], G$3, Tableau1[Année], $A$19))<0, -SUMIFS(Tableau1[Montant], Tableau1[Catégorie principale], \"Transport\", Tableau1[Mois], G$3, Tableau1[Année], $A$19), 0)","v":0},{"$f":"IF((SUMIFS(Tableau1[Montant], Tableau1[Catégorie principale], \"Transport\", Tableau1[Mois], H$3, Tableau1[Année], $A$19))<0, -SUMIFS(Tableau1[Montant], Tableau1[Catégorie principale], \"Transport\", Tableau1[Mois], H$3, Tableau1[Année], $A$19), 0)","v":0},{"$f":"IF((SUMIFS(Tableau1[Montant], Tableau1[Catégorie principale], \"Transport\", Tableau1[Mois], I$3, Tableau1[Année], $A$19))<0, -SUMIFS(Tableau1[Montant], Tableau1[Catégorie principale], \"Transport\", Tableau1[Mois], I$3, Tableau1[Année], $A$19), 0)","v":0},{"$f":"IF((SUMIFS(Tableau1[Montant], Tableau1[Catégorie principale], \"Transport\", Tableau1[Mois], J$3, Tableau1[Année], $A$19))<0, -SUMIFS(Tableau1[Montant], Tableau1[Catégorie principale], \"Transport\", Tableau1[Mois], J$3, Tableau1[Année], $A$19), 0)","v":0},{"$f":"IF((SUMIFS(Tableau1[Montant], Tableau1[Catégorie principale], \"Transport\", Tableau1[Mois], K$3, Tableau1[Année], $A$19))<0, -SUMIFS(Tableau1[Montant], Tableau1[Catégorie principale], \"Transport\", Tableau1[Mois], K$3, Tableau1[Année], $A$19), 0)","v":0},{"$f":"IF((SUMIFS(Tableau1[Montant], Tableau1[Catégorie principale], \"Transport\", Tableau1[Mois], L$3, Tableau1[Année], $A$19))<0, -SUMIFS(Tableau1[Montant], Tableau1[Catégorie principale], \"Transport\", Tableau1[Mois], L$3, Tableau1[Année], $A$19), 0)","v":0},{"$f":"IF((SUMIFS(Tableau1[Montant], Tableau1[Catégorie principale], \"Transport\", Tableau1[Mois], M$3, Tableau1[Année], $A$19))<0, -SUMIFS(Tableau1[Montant], Tableau1[Catégorie principale], \"Transport\", Tableau1[Mois], M$3, Tableau1[Année], $A$19), 0)","v":0}]
["Vacance",{"$f":"IF((SUMIFS(Tableau1[Montant], Tableau1[Catégorie principale], \"Vacances\", Tableau1[Mois], B$3, Tableau1[Année], $A$19))<0, -SUMIFS(Tableau1[Montant], Tableau1[Catégorie principale], \"Vacances\", Tableau1[Mois], B$3, Tableau1[Année], $A$19), 0)","v":0},{"$f":"IF((SUMIFS(Tableau1[Montant], Tableau1[Catégorie principale], \"Vacances\", Tableau1[Mois], C$3, Tableau1[Année], $A$19))<0, -SUMIFS(Tableau1[Montant], Tableau1[Catégorie principale], \"Vacances\", Tableau1[Mois], C$3, Tableau1[Année], $A$19), 0)","v":0},{"$f":"IF((SUMIFS(Tableau1[Montant], Tableau1[Catégorie principale], \"Vacances\", Tableau1[Mois], D$3, Tableau1[Année], $A$19))<0, -SUMIFS(Tableau1[Montant], Tableau1[Catégorie principale], \"Vacances\", Tableau1[Mois], D$3, Tableau1[Année], $A$19), 0)","v":0},{"$f":"IF((SUMIFS(Tableau1[Montant], Tableau1[Catégorie principale], \"Vacances\", Tableau1[Mois], E$3, Tableau1[Année], $A$19))<0, -SUMIFS(Tableau1[Montant], Tableau1[Catégorie principale], \"Vacances\", Tableau1[Mois], E$3, Tableau1[Année], $A$19), 0)","v":0},{"$f":"IF((SUMIFS(Tableau1[Montant], Tableau1[Catégorie principale], \"Vacances\", Tableau1[Mois], F$3, Tableau1[Année], $A$19))<0, -SUMIFS(Tableau1[Montant], Tableau1[Catégorie principale], \"Vacances\", Tableau1[Mois], F$3, Tableau1[Année], $A$19), 0)","v":0},{"$f":"IF((SUMIFS(Tableau1[Montant], Tableau1[Catégorie principale], \"Vacances\", Tableau1[Mois], G$3, Tableau1[Année], $A$19))<0, -SUMIFS(Tableau1[Montant], Tableau1[Catégorie principale], \"Vacances\", Tableau1[Mois], G$3, Tableau1[Année], $A$19), 0)","v":0},{"$f":"IF((SUMIFS(Tableau1[Montant], Tableau1[Catégorie principale], \"Vacances\", Tableau1[Mois], H$3, Tableau1[Année], $A$19))<0, -SUMIFS(Tableau1[Montant], Tableau1[Catégorie principale], \"Vacances\", Tableau1[Mois], H$3, Tableau1[Année], $A$19), 0)","v":0},{"$f":"IF((SUMIFS(Tableau1[Montant], Tableau1[Catégorie principale], \"Vacances\", Tableau1[Mois], I$3, Tableau1[Année], $A$19))<0, -SUMIFS(Tableau1[Montant], Tableau1[Catégorie principale], \"Vacances\", Tableau1[Mois], I$3, Tableau1[Année], $A$19), 0)","v":0},{"$f":"IF((SUMIFS(Tableau1[Montant], Tableau1[Catégorie principale], \"Vacances\", Tableau1[Mois], J$3, Tableau1[Année], $A$19))<0, -SUMIFS(Tableau1[Montant], Tableau1[Catégorie principale], \"Vacances\", Tableau1[Mois], J$3, Tableau1[Année], $A$19), 0)","v":0},{"$f":"IF((SUMIFS(Tableau1[Montant], Tableau1[Catégorie principale], \"Vacances\", Tableau1[Mois], K$3, Tableau1[Année], $A$19))<0, -SUMIFS(Tableau1[Montant], Tableau1[Catégorie principale], \"Vacances\", Tableau1[Mois], K$3, Tableau1[Année], $A$19), 0)","v":0},{"$f":"IF((SUMIFS(Tableau1[Montant], Tableau1[Catégorie principale], \"Vacances\", Tableau1[Mois], L$3, Tableau1[Année], $A$19))<0, -SUMIFS(Tableau1[Montant], Tableau1[Catégorie principale], \"Vacances\", Tableau1[Mois], L$3, Tableau1[Année], $A$19), 0)","v":0},{"$f":"IF((SUMIFS(Tableau1[Montant], Tableau1[Catégorie principale], \"Vacances\", Tableau1[Mois], M$3, Tableau1[Année], $A$19))<0, -SUMIFS(Tableau1[Montant], Tableau1[Catégorie principale], \"Vacances\", Tableau1[Mois], M$3, Tableau1[Année], $A$19), 0)","v":0}]
["Total",{"$f":"SUM(B22:B29)","v":30},0,0,0,0,0,0,0,0,0,0,0]
["Reste en fin de mois",{"$f":"B21-B30","v":-30},{"$f":"C21-C30","v":0},{"$f":"D21-D30","v":0},0,0,0,0,0,0,0,0,0]
["Salaire",{"$f":"IF(B21>0, B21, NA())","v":{"$error":"#N/A"}},{"$f":"IF(C21>0, C21, NA())","v":{"$error":"#N/A"}},{"$error":"#N/A"},{"$error":"#N/A"},{"$error":"#N/A"},{"$error":"#N/A"},{"$error":"#N/A"},{"$error":"#N/A"},{"$error":"#N/A"},{"$error":"#N/A"},{"$error":"#N/A"},{"$error":"#N/A"}]
["Charges habitation",{"$f":"IF(B22>0, B22, NA())","v":{"$error":"#N/A"}},{"$error":"#N/A"},{"$error":"#N/A"},{"$error":"#N/A"},{"$error":"#N/A"},{"$error":"#N/A"},{"$error":"#N/A"},{"$f":"IF(I22>0, I22, NA())","v":{"$error":"#N/A"}},{"$error":"#N/A"},{"$error":"#N/A"},{"$error":"#N/A"},{"$error":"#N/A"}]
["Banque & autre",{"$error":"#N/A"},{"$error":"#N/A"},{"$error":"#N/A"},{"$error":"#N/A"},{"$error":"#N/A"},{"$error":"#N/A"},{"$error":"#N/A"},{"$error":"#N/A"},{"$error":"#N/A"},{"$error":"#N/A"},{"$error":"#N/A"},{"$error":"#N/A"}]
["Pannier repas",{"$error":"#N/A"},{"$error":"#N/A"},{"$error":"#N/A"},{"$error":"#N/A"},{"$error":"#N/A"},{"$error":"#N/A"},{"$error":"#N/A"},{"$error":"#N/A"},{"$f":"IF(J24>0, J24, NA())","v":{"$error":"#N/A"}},{"$error":"#N/A"},{"$error":"#N/A"},{"$error":"#N/A"}]
["Courses & autres achats",30,{"$error":"#N/A"},{"$error":"#N/A"},{"$error":"#N/A"},{"$error":"#N/A"},{"$error":"#N/A"},{"$f":"IF(H25>0, H25, NA())","v":{"$error":"#N/A"}},{"$error":"#N/A"},{"$error":"#N/A"},{"$error":"#N/A"},{"$error":"#N/A"},{"$error":"#N/A"}]
["Santé",{"$error":"#N/A"},{"$error":"#N/A"},{"$error":"#N/A"},{"$error":"#N/A"},{"$error":"#N/A"},{"$error":"#N/A"},{"$error":"#N/A"},{"$error":"#N/A"},{"$error":"#N/A"},{"$error":"#N/A"},{"$error":"#N/A"},{"$error":"#N/A"}]
["Soirées, sorties et loisirs",{"$error":"#N/A"},{"$error":"#N/A"},{"$error":"#N/A"},{"$error":"#N/A"},{"$error":"#N/A"},{"$error":"#N/A"},{"$error":"#N/A"},{"$error":"#N/A"},{"$error":"#N/A"},{"$error":"#N/A"},{"$error":"#N/A"},{"$error":"#N/A"}]
["Transport",{"$error":"#N/A"},{"$error":"#N/A"},{"$error":"#N/A"},{"$error":"#N/A"},{"$error":"#N/A"},{"$error":"#N/A"},{"$error":"#N/A"},{"$error":"#N/A"},{"$error":"#N/A"},{"$error":"#N/A"},{"$error":"#N/A"},{"$error":"#N/A"}]
["Vacance",{"$error":"#N/A"},{"$error":"#N/A"},{"$error":"#N/A"},{"$error":"#N/A"},{"$error":"#N/A"},{"$error":"#N/A"},{"$error":"#N/A"},{"$error":"#N/A"},{"$error":"#N/A"},{"$error":"#N/A"},{"$error":"#N/A"},{"$error":"#N/A"}]
["Total",{"$f":"IF(SUM(IF(ISNA(B$33:B$40),0,B$33:B$40))>0, SUM(IF(ISNA(B$33:B$40),0,B$33:B$40)), NA())","v":30},{"$f":"IF(SUM(IF(ISNA(C$33:C$40),0,C$33:C$40))>0, SUM(IF(ISNA(C$33:C$40),0,C$33:C$40)), NA())","v":{"$error":"#N/A"}},{"$f":"IF(SUM(IF(ISNA(D$33:D$40),0,D$33:D$40))>0, SUM(IF(ISNA(D$33:D$40),0,D$33:D$40)), NA())","v":{"$error":"#N/A"}},{"$f":"IF(SUM(IF(ISNA(E$33:E$40),0,E$33:E$40))>0, SUM(IF(ISNA(E$33:E$40),0,E$33:E$40)), NA())","v":{"$error":"#N/A"}},{"$f":"IF(SUM(IF(ISNA(F$33:F$40),0,F$33:F$40))>0, SUM(IF(ISNA(F$33:F$40),0,F$33:F$40)), NA())","v":{"$error":"#N/A"}},{"$f":"IF(SUM(IF(ISNA(G$33:G$40),0,G$33:G$40))>0, SUM(IF(ISNA(G$33:G$40),0,G$33:G$40)), NA())","v":{"$error":"#N/A"}},{"$f":"IF(SUM(IF(ISNA(H$33:H$40),0,H$33:H$40))>0, SUM(IF(ISNA(H$33:H$40),0,H$33:H$40)), NA())","v":{"$error":"#N/A"}},{"$f":"IF(SUM(IF(ISNA(I$33:I$40),0,I$33:I$40))>0, SUM(IF(ISNA(I$33:I$40),0,I$33:I$40)), NA())","v":{"$error":"#N/A"}},{"$f":"IF(SUM(IF(ISNA(J$33:J$40),0,J$33:J$40))>0, SUM(IF(ISNA(J$33:J$40),0,J$33:J$40)), NA())","v":{"$error":"#N/A"}},{"$f":"IF(SUM(IF(ISNA(K$33:K$40),0,K$33:K$40))>0, SUM(IF(ISNA(K$33:K$40),0,K$33:K$40)), NA())","v":{"$error":"#N/A"}},{"$f":"IF(SUM(IF(ISNA(L$33:L$40),0,L$33:L$40))>0, SUM(IF(ISNA(L$33:L$40),0,L$33:L$40)), NA())","v":{"$error":"#N/A"}},{"$f":"IF(SUM(IF(ISNA(M$33:M$40),0,M$33:M$40))>0, SUM(IF(ISNA(M$33:M$40),0,M$33:M$40)), NA())","v":{"$error":"#N/A"}}]
["Reste en fin de mois",{"$f":"B$32-B$41","v":{"$error":"#N/A"}},{"$f":"C$32-C$41","v":{"$error":"#N/A"}},{"$error":"#N/A"},{"$error":"#N/A"},{"$error":"#N/A"},{"$error":"#N/A"},{"$f":"H$32-H$41","v":{"$error":"#N/A"}},{"$error":"#N/A"},{"$error":"#N/A"},{"$error":"#N/A"},{"$error":"#N/A"},{"$error":"#N/A"}]
[]
[]
["Menu déroulant",null,"Solde mois en cour",null,null,null,"mois en cour"]
[1,null,{"$f":"HLOOKUP((CHOOSE((MONTH(TODAY())),\"Janvier\",\"Février\",\"Mars\",\"Avril\",\"Mai\",\"Juin\",\"Juillet\",\"Aout\",\"Septembre\",\"Octobre\",\"Novembre\",\"Décembre\")), $B$20:$M$42, 23, FALSE)","v":{"$error":"#N/A"}},null,null,13,"Salaire",null,null,{"$f":"HLOOKUP((CHOOSE((MONTH(TODAY())),\"Janvier\",\"Février\",\"Mars\",\"Avril\",\"Mai\",\"Juin\",\"Juillet\",\"Aout\",\"Septembre\",\"Octobre\",\"Novembre\",\"Décembre\")), $B$20:$M$42, F46, FALSE)","v":{"$error":"#N/A"}}]
[2019,null,null,null,null,14,"Charges",null,null,{"$f":"HLOOKUP((CHOOSE((MONTH(TODAY())),\"Janvier\",\"Février\",\"Mars\",\"Avril\",\"Mai\",\"Juin\",\"Juillet\",\"Aout\",\"Septembre\",\"Octobre\",\"Novembre\",\"Décembre\")), $B$20:$M$42, F47, FALSE)","v":{"$error":"#N/A"}}]
[2020,null,null,null,null,15,"Banque & autre",null,null,{"$error":"#N/A"}]
[null,null,null,null,null,16,"Pannier repas",null,null,{"$f":"HLOOKUP((CHOOSE((MONTH(TODAY())),\"Janvier\",\"Février\",\"Mars\",\"Avril\",\"Mai\",\"Juin\",\"Juillet\",\"Aout\",\"Septembre\",\"Octobre\",\"Novembre\",\"Décembre\")), $B$20:$M$42, F49, FALSE)","v":{"$error":"#N/A"}}]
[null,null,"Economie de l'année en cour",null,null,17,"Courses & achats",null,null,{"$error":"#N/A"}]
[null,null,null,null,null,18,"Santé",null,null,{"$error":"#N/A"}]
[null,null,{"$f":"IF(SUM(IF(ISNA($B$42:$M$42),0,$B$42:$M$42))>0, SUM(IF(ISNA($B$42:$M$42),0,$B$42:$M$42)), NA())","v":{"$error":"#N/A"}},null,null,19,"Sorties et loisirs",null,null,{"$error":"#N/A"}]
[null,null,null,null,null,20,"Transport",null,null,{"$error":"#N/A"}]
[null,null,null,null,null,21,"Vacance",null,null,{"$error":"#N/A"}]
[null,null,null,null,null,22,"Total",null,null,{"$error":"#N/A"}]